Name,Sub Group,Service Area,Expense Type,Narrative,Date,Transaction Number,Amount,Supplier Name,Supplier Ref,Period,Year
Allerdale Borough Council,51101,Capital Expenditure,Housing Improvement Projects,External Contractor Payments (Capital),,256847,350.00,PACIFICA HOME SERVICE,C00206,8,2017
Allerdale Borough Council,15506,Supplies & Services,Housing & Health Pay Group,Professional Services,08/11/2017,256848,"1,480.00",Redacted information - included personal information ,A00206,8,2017
Allerdale Borough Council,15506,Supplies & Services,Housing & Health Pay Group,Professional Services,08/11/2017,256849,"1,240.00",Redacted information - included personal information ,A00206,8,2017
Allerdale Borough Council,15800,Supplies & Services,Parking Services Pay Group,Budget-Computing Costs (Non Capital),15/11/2017,256850,400.00,METRIC GROUP LTD,A00568,8,2017
Allerdale Borough Council,15800,Supplies & Services,Parking Services Pay Group,Budget-Computing Costs (Non Capital),15/11/2017,256851,462.50,METRIC GROUP LTD,A00568,8,2017
Allerdale Borough Council,15800,Supplies & Services,Parking Services Pay Group,Budget-Computing Costs (Non Capital),15/11/2017,256852,475.00,METRIC GROUP LTD,A00568,8,2017
Allerdale Borough Council,15800,Supplies & Services,Parking Services Pay Group,Budget-Computing Costs (Non Capital),15/11/2017,256853,475.00,METRIC GROUP LTD,A00568,8,2017
Allerdale Borough Council,15800,Supplies & Services,Parking Services Pay Group,Budget-Computing Costs (Non Capital),15/11/2017,256854,512.50,METRIC GROUP LTD,A00568,8,2017
Allerdale Borough Council,15800,Supplies & Services,Parking Services Pay Group,Budget-Computing Costs (Non Capital),15/11/2017,256855,512.50,METRIC GROUP LTD,A00568,8,2017
Allerdale Borough Council,20150,Third Party Payments,Building Control - Non-Chargeable,General Partnership Service Fees,01/11/2017,256856,100.00,THOMAS ARMSTRONG,C00003,8,2017
Allerdale Borough Council,10401,Employee Costs,Building Control Pay Group,Agency Staff Costs,08/11/2017,256857,"1,340.20",SOUTH MILFORD CONSULTING LTD,A02453,8,2017
Allerdale Borough Council,54105,Capital Expenditure,Disabled Facilities Grants,Grants  Private Individuals (Capital),01/11/2017,256858,"3,270.00",BLUE FLAME SERVICES LTD,X00213,8,2017
Allerdale Borough Council,54105,Capital Expenditure,Disabled Facilities Grants,Grants  Private Individuals (Capital),01/11/2017,256859,"11,701.65",PARTNERSHIP IN PROPERTY MANAGEMENT LTD,X00120,8,2017
Allerdale Borough Council,54105,Capital Expenditure,Discretionary Grants,Grants  Private Individuals (Capital),01/11/2017,256860,"9,588.45",L.E.A. BUILDING SERVICES LTD,X00264,8,2017
Allerdale Borough Council,16102,Supplies & Services,Social Impact Investment Fund,Regeneration Initiatives,08/11/2017,256861,"46,469.50",PLANET KNOX LIMITED,M01247,8,2017
Allerdale Borough Council,16150,Supplies & Services,"The Hub, Workington Town Centre",General Promotions,01/11/2017,256862,"1,500.00",Redacted information - included personal information ,M00601,8,2017
Allerdale Borough Council,16150,Supplies & Services,Shop Front Improvements,General Promotions,01/11/2017,256863,900.00,Redacted information - included personal information ,M00985,8,2017
Allerdale Borough Council,16150,Supplies & Services,Shop Front Improvements,General Promotions,01/11/2017,256864,810.00,Redacted information - included personal information ,A01378,8,2017
Allerdale Borough Council,15502,Supplies & Services,Housing & Health Pay Group,Land Registry Fees,30/11/2017,256865,36.00,HM LAND REGISTRY ,A00505,8,2017
Allerdale Borough Council,15502,Supplies & Services,Legal Services,Land Registry Fees,03/11/2017,256866,64.00,HM LAND REGISTRY,A00505,8,2017
Allerdale Borough Council,15301,Supplies & Services,Parking Services Pay Group,Uniforms,01/11/2017,256867,69.80,KELTIC,A00017,8,2017
Allerdale Borough Council,15301,Supplies & Services,Parking Services Pay Group,Uniforms,01/11/2017,256868,128.50,KELTIC,A00017,8,2017
Allerdale Borough Council,15501,Supplies & Services,Solway Wetlands Project,Consultants Fees,08/11/2017,256869,"20,117.00",BORDER SIGNS & GRAPHICS LTD,A02408,8,2017
Allerdale Borough Council,15904,Supplies & Services,Members Services,Training,15/11/2017,256870,"2,000.00",IMPROVEMENT & DEVELOPMENT AGENCY,A00484,8,2017
Allerdale Borough Council,15506,Supplies & Services,Solway Wetlands Project,Professional Services,08/11/2017,256871,"9,187.50",BOWLES GREEN LIMITED,A00763,8,2017
Allerdale Borough Council,15301,Supplies & Services,Parking Services Pay Group,Uniforms,08/11/2017,256872,"1,659.85",KELTIC,A00017,8,2017
Allerdale Borough Council,14202,Transport,Solway Wetlands Project,Hire Car and petrol,01/11/2017,256873,78.87,ENTERPRISE RENT A CAR,A01367,8,2017
Allerdale Borough Council,15703,Supplies & Services,IT Services,Call Charges,01/11/2017,256874,713.12,BRITISH TELECOMMUNICATIONS,X00004,8,2017
Allerdale Borough Council,15501,Supplies & Services,Revenue,Consultants Fees,08/11/2017,256875,310.00,JACOBS (BAILIFFS),A00495,8,2017
Allerdale Borough Council,15703,Supplies & Services,IT Services,Call Charges,01/11/2017,256876,"1,460.11",BRITISH TELECOMMUNICATIONS,X00004,8,2017
Allerdale Borough Council,12408,Premises,Industrial Units,Water & Sewage,01/11/2017,256877,36.05,UNITED UTILITIES,X00011,8,2017
Allerdale Borough Council,12402,Premises,Industrial Units,Electricity,01/11/2017,256878,28.72,BRITISH GAS ,X00039,8,2017
Allerdale Borough Council,12402,Premises,Industrial Units,Electricity,01/11/2017,256879,6.32,BRITISH GAS,X00039,8,2017
Allerdale Borough Council,12402,Premises,Corporate Property Maintenance,Electricity,01/11/2017,256880,-45.75,N POWER,X00015,8,2017
Allerdale Borough Council,12402,Premises,Corporate Property Maintenance,Electricity,01/11/2017,256881,-44.87,N POWER,X00015,8,2017
Allerdale Borough Council,12402,Premises,Corporate Property Maintenance,Electricity,01/11/2017,256882,-43.48,N POWER,X00015,8,2017
Allerdale Borough Council,12402,Premises,Corporate Property Maintenance,Electricity,01/11/2017,256883,-126.78,N POWER,X00015,8,2017
Allerdale Borough Council,12402,Premises,Corporate Property Maintenance,Electricity,01/11/2017,256884,-108.24,N POWER,X00015,8,2017
Allerdale Borough Council,12402,Premises,Public Convenience Cleaning,Electricity,01/11/2017,256885,2.75,N POWER,X00015,8,2017
Allerdale Borough Council,12402,Premises,Public Convenience Cleaning,Electricity,01/11/2017,256886,2.75,N POWER,X00015,8,2017
Allerdale Borough Council,12402,Premises,Corporate Property Maintenance,Electricity,01/11/2017,256887,106.93,N POWER,X00015,8,2017
Allerdale Borough Council,12402,Premises,Corporate Property Maintenance,Electricity,01/11/2017,256888,31.91,N POWER,X00015,8,2017
Allerdale Borough Council,12402,Premises,Corporate Property Maintenance,Electricity,01/11/2017,256889,6.07,N POWER,X00015,8,2017
Allerdale Borough Council,12402,Premises,Corporate Property Maintenance,Electricity,01/11/2017,256890,38.72,N POWER,X00015,8,2017
Allerdale Borough Council,12402,Premises,Corporate Property Maintenance,Electricity,01/11/2017,256891,3.48,N POWER,X00015,8,2017
Allerdale Borough Council,12402,Premises,Corporate Property Maintenance,Electricity,01/11/2017,256892,139.58,N POWER,X00015,8,2017
Allerdale Borough Council,12402,Premises,Corporate Property Maintenance,Electricity,01/11/2017,256893,95.06,N POWER,X00015,8,2017
Allerdale Borough Council,12402,Premises,Corporate Property Maintenance,Electricity,01/11/2017,256894,2.66,N POWER,X00015,8,2017
Allerdale Borough Council,12402,Premises,Corporate Property Maintenance,Electricity,01/11/2017,256895,50.40,N POWER,X00015,8,2017
Allerdale Borough Council,12402,Premises,Corporate Property Maintenance,Electricity,01/11/2017,256896,51.56,N POWER,X00015,8,2017
Allerdale Borough Council,12402,Premises,Corporate Property Maintenance,Electricity,01/11/2017,256897,51.55,N POWER,X00015,8,2017
Allerdale Borough Council,12402,Premises,Corporate Property Maintenance,Electricity,01/11/2017,256898,49.75,N POWER,X00015,8,2017
Allerdale Borough Council,12402,Premises,Corporate Property Maintenance,Electricity,01/11/2017,256899,51.38,N POWER,X00015,8,2017
Allerdale Borough Council,12402,Premises,Corporate Property Maintenance,Electricity,01/11/2017,256900,49.76,N POWER,X00015,8,2017
Allerdale Borough Council,12402,Premises,Corporate Property Maintenance,Electricity,01/11/2017,256901,60.45,N POWER,X00015,8,2017
Allerdale Borough Council,12402,Premises,Public Convenience Cleaning,Electricity,01/11/2017,256902,4.63,N POWER,X00015,8,2017
Allerdale Borough Council,12402,Premises,Public Convenience Cleaning,Electricity,01/11/2017,256903,1.78,N POWER,X00015,8,2017
Allerdale Borough Council,12402,Premises,Public Convenience Cleaning,Electricity,01/11/2017,256904,18.97,N POWER,X00015,8,2017
Allerdale Borough Council,12402,Premises,Car Parks Inspection & Maintenance,Electricity,01/11/2017,256905,4.30,N POWER,X00015,8,2017
Allerdale Borough Council,12402,Premises,Corporate Property Maintenance,Electricity,01/11/2017,256906,26.93,N POWER,X00015,8,2017
Allerdale Borough Council,12402,Premises,Corporate Property Maintenance,Electricity,01/11/2017,256907,11.83,N POWER,X00015,8,2017
Allerdale Borough Council,12402,Premises,Corporate Property Maintenance,Electricity,01/11/2017,256908,12.75,N POWER,X00015,8,2017
Allerdale Borough Council,12402,Premises,Corporate Property Maintenance,Electricity,01/11/2017,256909,12.74,N POWER,X00015,8,2017
Allerdale Borough Council,12402,Premises,Corporate Property Maintenance,Electricity,01/11/2017,256910,12.38,N POWER,X00015,8,2017
Allerdale Borough Council,12402,Premises,Corporate Property Maintenance,Electricity,01/11/2017,256911,12.71,N POWER,X00015,8,2017
Allerdale Borough Council,12402,Premises,Corporate Property Maintenance,Electricity,01/11/2017,256912,12.88,N POWER,X00015,8,2017
Allerdale Borough Council,12402,Premises,Corporate Property Maintenance,Electricity,01/11/2017,256913,12.40,N POWER,X00015,8,2017
Allerdale Borough Council,12402,Premises,Corporate Property Maintenance,Electricity,01/11/2017,256914,36.28,N POWER,X00015,8,2017
Allerdale Borough Council,12402,Premises,Corporate Property Maintenance,Electricity,01/11/2017,256915,30.88,N POWER,X00015,8,2017
Allerdale Borough Council,15804,Supplies & Services,IT Services,Computer Data Lines B.T.,01/11/2017,256916,"4,015.50",BRITISH TELECOMMUNICATIONS,X00004,8,2017
Allerdale Borough Council,15704,Supplies & Services,IT Services,Mobile Phones,01/11/2017,256917,449.78,VODAFONE,A00551,8,2017
Allerdale Borough Council,15101,Supplies & Services,Public Convenience Cleaning,Equipment Costs,01/11/2017,256918,-36.34,INSTOCK (CHANDLERS),A00050,8,2017
Allerdale Borough Council,15600,Supplies & Services,Electoral Registration,Budget-Postal Services,01/11/2017,256919,725.39,ROYAL MAIL LETTERS,X00021,8,2017
Allerdale Borough Council,10601,Employee Costs,Elections,External Courses & Seminar Fees,01/11/2017,256920,"2,220.00",ASSOCIATION OF ELECTORAL ADMIN,A00189,8,2017
Allerdale Borough Council,14202,Transport,Electoral Registration,Hire Car and petrol,01/11/2017,256921,29.79,ENTERPRISE RENT A CAR,A01367,8,2017
Allerdale Borough Council,10601,Employee Costs,Training,External Courses & Seminar Fees,01/11/2017,256922,196.00,JULIE BELL CONSULTING LIMITED,A01282,8,2017
Allerdale Borough Council,12401,Premises,Corporate Property Maintenance,Energy Management Charges,15/11/2017,256923,"1,921.00",SCHNEIDER ELECTRIC LTD,A00859,8,2017
Allerdale Borough Council,12203,Premises,Corporate Property Maintenance,Plumbing and Heating Maintenance,01/11/2017,256924,698.00,Redacted information - included personal information ,C00008,8,2017
Allerdale Borough Council,12101,Premises,Multi Storey Car Park Utilities & Maint,External Maintenance & Decoration,01/11/2017,256925,244.00,Redacted information - included personal information ,C00008,8,2017
Allerdale Borough Council,12103,Premises,Coastal Protection and Inland Flooding,Grounds Maintenance,01/11/2017,256926,300.00,IAN WILSON HAULAGE LIMITED,A01278,8,2017
Allerdale Borough Council,15101,Supplies & Services,Public Convenience Cleaning,Equipment Costs,01/11/2017,256927,446.98,INSTOCK (CHANDLERS),A00050,8,2017
Allerdale Borough Council,12201,Premises,Corporate Property Maintenance,Internal Maintenance,01/11/2017,256928,710.00,CUMBRIA BLINDS,A00183,8,2017
Allerdale Borough Council,54105,Capital Expenditure,Disabled Facilities Grants,Grants  Private Individuals (Capital),08/11/2017,256929,875.00,CONISTON CONSULTANTS LTD,X00210,8,2017
Allerdale Borough Council,54105,Capital Expenditure,Disabled Facilities Grants,Grants  Private Individuals (Capital),08/11/2017,256930,"2,580.00",PRISM MEDICAL UK,X00195,8,2017
Allerdale Borough Council,54105,Capital Expenditure,Discretionary Grants,Grants  Private Individuals (Capital),08/11/2017,256931,"2,412.50",FLOODGUARD UK LTD,M01248,8,2017
Allerdale Borough Council,10201,Employee Costs,Housing & Health Pay Group,Long Service Awards,08/11/2017,256932,420.00,Redacted information - included personal information ,M01249,8,2017
Allerdale Borough Council,20150,Third Party Payments,Managed Car Parks,General Partnership Service Fees,08/11/2017,256933,"2,672.30",KESWICK CONVENTION TRUST,A02390,8,2017
Allerdale Borough Council,15203,Supplies & Services,Community Housing Fund,Catering Costs and Consumables,08/11/2017,256934,176.70,Redacted information - included personal information ,M01250,8,2017
Allerdale Borough Council,15501,Supplies & Services,Estates,Consultants Fees,08/11/2017,256935,"1,470.00",STEVEN SLOCOMBE LTD,A02433,8,2017
Allerdale Borough Council,15501,Supplies & Services,Corporate Transformation,Consultants Fees,08/11/2017,256936,"4,875.00",Redacted information - included personal information ,A02434,8,2017
Allerdale Borough Council,10401,Employee Costs,Land Charges Service,Agency Staff Costs,08/11/2017,256937,510.60,ADECCO RECRUITMENT,A00188,8,2017
Allerdale Borough Council,15506,Supplies & Services,Arts Development,Professional Services,08/11/2017,256938,"1,000.00",CORKER WALLACE RESOURCING LTD,A02484,8,2017
Allerdale Borough Council,16101,Supplies & Services,Planning and Development,Statutory Notices,08/11/2017,256939,410.04,CUMBRIAN NEWSPAPERS LIMITED,A00869,8,2017
Allerdale Borough Council,16101,Supplies & Services,Planning and Development,Statutory Notices,08/11/2017,256940,420.71,CUMBRIAN NEWSPAPERS LIMITED,A00869,8,2017
Allerdale Borough Council,15904,Supplies & Services,Members Services,Training,22/11/2017,256941,85.00,IMPROVEMENT & DEVELOPMENT AGENCY,A00484,8,2017
Allerdale Borough Council,20150,Third Party Payments,Footways,General Partnership Service Fees,08/11/2017,256942,"6,466.66",CUMBRIA CC ,A00066,8,2017
Allerdale Borough Council,10601,Employee Costs,Training,External Courses & Seminar Fees,15/11/2017,256943,893.00,THE LEARN CENTRE,A02256,8,2017
Allerdale Borough Council,20150,Third Party Payments,Museums,General Partnership Service Fees,08/11/2017,256944,"7,500.00",WORKINGTON HERITAGE GROUP LTD,A00339,8,2017
Allerdale Borough Council,15501,Supplies & Services,Homelessness,Consultants Fees,08/11/2017,256945,50.00,MARYPORT HEALTH SERVICE,A00421,8,2017
Allerdale Borough Council,15506,Supplies & Services,Environmental Protection,Professional Services,08/11/2017,256946,115.00,UNBLOCK CUMBRIA LTD,C00005,8,2017
Allerdale Borough Council,16100,Supplies & Services,Communications and Marketing,Budget-Advertising and Promotions,22/11/2017,256947,"1,450.00",HEMMING GROUP LTD,A00379,8,2017
Allerdale Borough Council,15101,Supplies & Services,Homelessness,Equipment Costs,22/11/2017,256948,62.48,ARGOS BUSINESS SOLUTION-STORE COLLECTION,A00411,8,2017
Allerdale Borough Council,14104,Transport,Environmental Protection,Repairs & Maintenance,08/11/2017,256949,200.00,UNBLOCK CUMBRIA LTD,C00005,8,2017
Allerdale Borough Council,15405,Supplies & Services,Solway Wetlands Project,Use of External Printers,08/11/2017,256950,"1,108.00",H&H REEDS PRINTERS LTD,A00591,8,2017
Allerdale Borough Council,15501,Supplies & Services,Off-street - Owned,Consultants Fees,15/11/2017,256951,"27,088.74",HIGHWAY ROAD SERVICES LTD,C00205,8,2017
Allerdale Borough Council,15405,Supplies & Services,Solway Wetlands Project,Use of External Printers,08/11/2017,256952,"1,610.00",PRINT POINT CARLISLE LTD,A02494,8,2017
Allerdale Borough Council,15506,Supplies & Services,Housing Strategic Function,Professional Services,08/11/2017,256953,400.00,FCC ENVIRONMENT SERVICES (FOCSA),A00085,8,2017
Allerdale Borough Council,15501,Supplies & Services,Shared Revs & Bens Projects,Consultants Fees,08/11/2017,256954,"7,504.20",CAPACITYGRID T/A LIBERATA UK LTD,C00122,8,2017
Allerdale Borough Council,15501,Supplies & Services,Planning and Development,Consultants Fees,08/11/2017,256955,253.50,CAPITA,A00683,8,2017
Allerdale Borough Council,54105,Capital Expenditure,Disabled Facilities Grants,Grants  Private Individuals (Capital),08/11/2017,256956,"3,950.00",DOLPHIN STAIRLIFTS CUMBRIA,X00107,8,2017
Allerdale Borough Council,21150,Transfer Payments,Festivals & Events,General Grants,08/11/2017,256957,"1,000.00",PAINT THE TOWN RED,A01539,8,2017
Allerdale Borough Council,20150,Third Party Payments,Managed Car Parks,General Partnership Service Fees,08/11/2017,256958,"1,577.60",KESWICK CONVENTION TRUST,A02390,8,2017
Allerdale Borough Council,20150,Third Party Payments,Managed Car Parks,General Partnership Service Fees,08/11/2017,256959,"4,497.80",KESWICK CONVENTION TRUST,A02390,8,2017
Allerdale Borough Council,15501,Supplies & Services,Solway Wetlands Project,Consultants Fees,08/11/2017,256960,150.00,Redacted information - included personal information ,M01251,8,2017
Allerdale Borough Council,15850,Supplies & Services,Solway Wetlands Project,General Computer Costs,,256961,94.74,BARCLAYCARD COMMERCIAL,X00207,8,2017
Allerdale Borough Council,14105,Transport,Community Services Pay Group,"Fuel, Lubricants & Consumables",30/11/2017,256962,371.29,BP OIL UK LTD,X00022,8,2017
Allerdale Borough Council,14105,Transport,Property Services Pay Group,"Fuel, Lubricants & Consumables",30/11/2017,256963,294.09,BP OIL UK LTD,X00022,8,2017
Allerdale Borough Council,14105,Transport,Community Services Pay Group,"Fuel, Lubricants & Consumables",30/11/2017,256964,388.70,BP OIL UK LTD,X00022,8,2017
Allerdale Borough Council,14105,Transport,Community Services Pay Group,"Fuel, Lubricants & Consumables",30/11/2017,256965,442.71,BP OIL UK LTD,X00022,8,2017
Allerdale Borough Council,14105,Transport,Solway Coast AONB Core Funding,"Fuel, Lubricants & Consumables",30/11/2017,256966,413.79,BP OIL UK LTD,X00022,8,2017
Allerdale Borough Council,14105,Transport,Community Services Pay Group,"Fuel, Lubricants & Consumables",30/11/2017,256967,267.86,BP OIL UK LTD,X00022,8,2017
Allerdale Borough Council,14105,Transport,Solway Coast AONB Core Funding,"Fuel, Lubricants & Consumables",30/11/2017,256968,523.73,BP OIL UK LTD,X00022,8,2017
Allerdale Borough Council,14105,Transport,Community Services Pay Group,"Fuel, Lubricants & Consumables",30/11/2017,256969,364.87,BP OIL UK LTD,X00022,8,2017
Allerdale Borough Council,14105,Transport,Community Services Pay Group,"Fuel, Lubricants & Consumables",30/11/2017,256970,376.69,BP OIL UK LTD,X00022,8,2017
Allerdale Borough Council,14105,Transport,Community Services Pay Group,"Fuel, Lubricants & Consumables",30/11/2017,256971,524.68,BP OIL UK LTD,X00022,8,2017
Allerdale Borough Council,14105,Transport,Community Services Pay Group,"Fuel, Lubricants & Consumables",30/11/2017,256972,342.47,BP OIL UK LTD,X00022,8,2017
Allerdale Borough Council,14105,Transport,Community Services Pay Group,"Fuel, Lubricants & Consumables",30/11/2017,256973,337.64,BP OIL UK LTD,X00022,8,2017
Allerdale Borough Council,14105,Transport,Community Services Pay Group,"Fuel, Lubricants & Consumables",30/11/2017,256974,591.30,BP OIL UK LTD,X00022,8,2017
Allerdale Borough Council,14105,Transport,Community Services Pay Group,"Fuel, Lubricants & Consumables",30/11/2017,256975,515.09,BP OIL UK LTD,X00022,8,2017
Allerdale Borough Council,14105,Transport,Community Services Pay Group,"Fuel, Lubricants & Consumables",30/11/2017,256976,400.71,BP OIL UK LTD,X00022,8,2017
Allerdale Borough Council,14105,Transport,Homelessness,"Fuel, Lubricants & Consumables",30/11/2017,256977,335.52,BP OIL UK LTD,X00022,8,2017
Allerdale Borough Council,14105,Transport,Community Services Pay Group,"Fuel, Lubricants & Consumables",30/11/2017,256978,336.93,BP OIL UK LTD,X00022,8,2017
Allerdale Borough Council,14105,Transport,Community Services Pay Group,"Fuel, Lubricants & Consumables",30/11/2017,256979,428.48,BP OIL UK LTD,X00022,8,2017
Allerdale Borough Council,14105,Transport,Community Services Pay Group,"Fuel, Lubricants & Consumables",30/11/2017,256980,413.06,BP OIL UK LTD,X00022,8,2017
Allerdale Borough Council,14105,Transport,Community Services Pay Group,"Fuel, Lubricants & Consumables",30/11/2017,256981,455.28,BP OIL UK LTD,X00022,8,2017
Allerdale Borough Council,14105,Transport,Community Services Pay Group,"Fuel, Lubricants & Consumables",30/11/2017,256982,528.81,BP OIL UK LTD,X00022,8,2017
Allerdale Borough Council,14105,Transport,Community Services Pay Group,"Fuel, Lubricants & Consumables",30/11/2017,256983,663.60,BP OIL UK LTD,X00022,8,2017
Allerdale Borough Council,14105,Transport,Community Services Pay Group,"Fuel, Lubricants & Consumables",,256984,557.90,BP OIL UK LTD,X00022,8,2017
Allerdale Borough Council,14105,Transport,Community Services Pay Group,"Fuel, Lubricants & Consumables",,256985,428.07,BP OIL UK LTD,X00022,8,2017
Allerdale Borough Council,14105,Transport,Community Services Pay Group,"Fuel, Lubricants & Consumables",,256986,366.89,BP OIL UK LTD,X00022,8,2017
Allerdale Borough Council,12302,Premises,Solway Coast AONB Core Funding,Building Cleaning,08/11/2017,256987,105.27,ORIAN SOLUTIONS LTD,A01814,8,2017
Allerdale Borough Council,16102,Supplies & Services,Tourism Incentive,Regeneration Initiatives,22/11/2017,256988,"10,000.00",NORTHUMBERLAND COUNTY COUNCIL,A01867,8,2017
Allerdale Borough Council,12303,Premises,Multi Storey Car Park Utilities & Maint,Window Cleaning,08/11/2017,256989,106.00,NT CLEANERS LTD,A01350,8,2017
Allerdale Borough Council,15506,Supplies & Services,Estates,Professional Services,08/11/2017,256990,720.00,Redacted information - included personal information ,M00820,8,2017
Allerdale Borough Council,12101,Premises,Corporate Property Maintenance,External Maintenance & Decoration,08/11/2017,256991,"23,466.32",ASHCROFT DEMOLITION (CUMBRIA) LTD,C00197,8,2017
Allerdale Borough Council,15500,Supplies & Services,Customer Services Pay Group,Budget-Services,08/11/2017,256992,50.00,CITIZENS ADVICE BUREAU,A01181,8,2017
Allerdale Borough Council,15500,Supplies & Services,Customer Services Pay Group,Budget-Services,08/11/2017,256993,50.00,CITIZENS ADVICE BUREAU,A01181,8,2017
Allerdale Borough Council,10601,Employee Costs,Training,External Courses & Seminar Fees,08/11/2017,256994,"1,800.00",GEN 11 ENGINEERING & TECH,A00095,8,2017
Allerdale Borough Council,15402,Supplies & Services,Customer Services Pay Group,Photocopier Charges,15/11/2017,256995,7.72,RICOH UK LTD,A00037,8,2017
Allerdale Borough Council,15101,Supplies & Services,Workington Nature Partnership,Equipment Costs,22/11/2017,256996,313.95,ISS WATERERS LANDSCAPE,C00044,8,2017
Allerdale Borough Council,10401,Employee Costs,Land Charges Service,Agency Staff Costs,08/11/2017,256997,510.60,ADECCO RECRUITMENT,A00188,8,2017
Allerdale Borough Council,16150,Supplies & Services,Shop Front Improvements,General Promotions,08/11/2017,256998,"1,800.00",Redacted information - included personal information ,M01252,8,2017
Allerdale Borough Council,15501,Supplies & Services,Planning and Development,Consultants Fees,08/11/2017,256999,"1,910.00",Redacted information - included personal information ,A01574,8,2017
Allerdale Borough Council,15501,Supplies & Services,Building Control - Non-Chargeable,Consultants Fees,08/11/2017,257000,"4,868.84",ASHCROFT DEMOLITION (CUMBRIA) LTD,C00197,8,2017
Allerdale Borough Council,10401,Employee Costs,Building Control Pay Group,Agency Staff Costs,08/11/2017,257001,"2,262.40",SOUTH MILFORD CONSULTING LTD,A02453,8,2017
Allerdale Borough Council,15501,Supplies & Services,Building Control Pay Group,Consultants Fees,15/11/2017,257002,"2,650.00",EMA PLANNING LTD,A02429,8,2017
Allerdale Borough Council,15501,Supplies & Services,Building Control Pay Group,Consultants Fees,08/11/2017,257003,"1,858.50",BRG INTERIM SOLUTIONS LTD,A02458,8,2017
Allerdale Borough Council,15501,Supplies & Services,Building Control Pay Group,Consultants Fees,08/11/2017,257004,"1,850.00",BRG INTERIM SOLUTIONS LTD,A02458,8,2017
Allerdale Borough Council,15501,Supplies & Services,Building Control Pay Group,Consultants Fees,08/11/2017,257005,"1,891.50",BRG INTERIM SOLUTIONS LTD,A02458,8,2017
Allerdale Borough Council,15501,Supplies & Services,Revenue,Consultants Fees,,257006,"1,125.84",BARCLAYCARD COMMERCIAL,X00207,8,2017
Allerdale Borough Council,16350,Supplies & Services,Museums,Miscellaneous Expenses,08/11/2017,257007,"1,500.00",ARTLINK TRANSPORT & STORAGE LTD,A02362,8,2017
Allerdale Borough Council,16150,Supplies & Services,Arts Development,General Promotions,08/11/2017,257008,400.00,CUMBRIA CC,A00066,8,2017
Allerdale Borough Council,10401,Employee Costs,Community Services Pay Group,Agency Staff Costs,08/11/2017,257009,"9,000.00",M P HEATH WASTE CONSULTANCY LTD,A02428,8,2017
Allerdale Borough Council,10401,Employee Costs,Housing & Health Pay Group,Agency Staff Costs,22/11/2017,257010,242.00,HAYS SPECIALIST RECRUITMENT LTD,A00280,8,2017
Allerdale Borough Council,15101,Supplies & Services,Trade Waste,Equipment Costs,15/11/2017,257011,"2,859.75",UK CONTAINER MAINTENANCE,A01889,8,2017
Allerdale Borough Council,15800,Supplies & Services,Parking Services Pay Group,Budget-Computing Costs (Non Capital),22/11/2017,257012,525.00,METRIC GROUP LTD,A00568,8,2017
Allerdale Borough Council,20150,Third Party Payments,Corporate Property Maintenance,General Partnership Service Fees,08/11/2017,257013,260.71,ORIAN SOLUTIONS LTD,A01814,8,2017
Allerdale Borough Council,15102,Supplies & Services,Parking Services Pay Group,Equipment Repair & Maintenance,15/11/2017,257014,106.18,RELIANCE HIGH-TECH LTD,C00123,8,2017
Allerdale Borough Council,15102,Supplies & Services,Parking Services Pay Group,Equipment Repair & Maintenance,15/11/2017,257015,19.36,RELIANCE HIGH-TECH LTD,C00123,8,2017
Allerdale Borough Council,15506,Supplies & Services,Housing & Health Pay Group,Professional Services,22/11/2017,257016,"1,480.00",Redacted information - included personal information ,A00206,8,2017
Allerdale Borough Council,14104,Transport,Parking Services Pay Group,Repairs & Maintenance,29/11/2017,257017,599.80,METRIC GROUP LTD,A00568,8,2017
Allerdale Borough Council,15501,Supplies & Services,Estates,Consultants Fees,08/11/2017,257018,882.00,STEVEN SLOCOMBE LTD,A02433,8,2017
Allerdale Borough Council,15102,Supplies & Services,Recycling,Equipment Repair & Maintenance,08/11/2017,257019,565.20,Redacted information - included personal information ,A00176,8,2017
Allerdale Borough Council,12101,Premises,Car Parks Inspection & Maintenance,External Maintenance & Decoration,08/11/2017,257020,751.00,Redacted information - included personal information ,C00008,8,2017
Allerdale Borough Council,12101,Premises,Corporate Property Maintenance,External Maintenance & Decoration,08/11/2017,257021,312.00,PATON BROS SCAFFOLDING LTD,C00009,8,2017
Allerdale Borough Council,12101,Premises,Corporate Property Maintenance,External Maintenance & Decoration,08/11/2017,257022,495.00,BINGHAM YATES LIMITED,A02144,8,2017
Allerdale Borough Council,10110,Employee Costs,Busy Bees Childcare Scheme,Salary Sacrifice,15/11/2017,257023,72.16,COMPUTERSHARE VOUCHER SERVICES,A00991,8,2017
Allerdale Borough Council,10110,Employee Costs,Busy Bees Childcare Scheme,Salary Sacrifice,15/11/2017,257024,"1,312.00",COMPUTERSHARE VOUCHER SERVICES,A00991,8,2017
Allerdale Borough Council,15506,Supplies & Services,Housing Strategic Function,Professional Services,08/11/2017,257025,48.00,Redacted information - included personal information ,C00008,8,2017
Allerdale Borough Council,15512,Supplies & Services,Animal Welfare,Kennelling,08/11/2017,257026,"20,000.00",WHINMILL FARM CANINE CENTRE,A00117,8,2017
Allerdale Borough Council,14101,Transport,Community Services Pay Group,Vehicle Leasing,08/11/2017,257027,332.08,ENTERPRISE RENT A CAR,A01367,8,2017
Allerdale Borough Council,14101,Transport,Community Services Pay Group,Vehicle Leasing,08/11/2017,257028,367.64,ENTERPRISE RENT A CAR,A01367,8,2017
Allerdale Borough Council,14101,Transport,Community Services Pay Group,Vehicle Leasing,08/11/2017,257029,367.64,ENTERPRISE RENT A CAR,A01367,8,2017
Allerdale Borough Council,14104,Transport,Public Convenience Cleaning,Repairs & Maintenance,08/11/2017,257030,86.67,GOODFELLOW & SONS,A00031,8,2017
Allerdale Borough Council,14104,Transport,Public Convenience Cleaning,Repairs & Maintenance,08/11/2017,257031,40.83,GOODFELLOW & SONS,A00031,8,2017
Allerdale Borough Council,16350,Supplies & Services,Chief Executive,Miscellaneous Expenses,,257032,777.00,BARCLAYCARD COMMERCIAL ,X00207,8,2017
Allerdale Borough Council,15201,Supplies & Services,Leaders Services,Entertainment Of Visitors,,257033,286.46,BARCLAYCARD COMMERCIAL,X00207,8,2017
Allerdale Borough Council,33118,Income,Off-street - Owned,Car Parks - Season Tickets Income,08/11/2017,257034,3.00,Redacted information - included personal information ,M01253,8,2017
Allerdale Borough Council,15203,Supplies & Services,Solway Coast AONB Core Funding,Catering Costs and Consumables,08/11/2017,257035,96.20,ALLERDALE BOROUGH COUNCIL ,X00216,8,2017
Allerdale Borough Council,10605,Employee Costs,Head of Community Services,Travel,08/11/2017,257036,112.26,ENTERPRISE RENT A CAR,A01367,8,2017
Allerdale Borough Council,15401,Supplies & Services,Corporate Postage and Stationary,General Stationery,08/11/2017,257037,167.22,LYRECO,A00043,8,2017
Allerdale Borough Council,16100,Supplies & Services,Communications and Marketing,Budget-Advertising and Promotions,08/11/2017,257038,750.00,CUMBRIAN NEWSPAPERS LIMITED,A00869,8,2017
Allerdale Borough Council,15101,Supplies & Services,Corporate Property Maintenance,Equipment Costs,08/11/2017,257039,62.27,FAST KEY SERVICES LTD,A01537,8,2017
Allerdale Borough Council,16100,Supplies & Services,Communications and Marketing,Budget-Advertising and Promotions,08/11/2017,257040,250.00,CUMBRIAN NEWSPAPERS LIMITED,A00869,8,2017
Allerdale Borough Council,14202,Transport,Head of Service - PA Pay Group,Hire Car and petrol,08/11/2017,257041,183.79,ENTERPRISE RENT A CAR,A01367,8,2017
Allerdale Borough Council,15804,Supplies & Services,IT Services,Computer Data Lines B.T.,08/11/2017,257042,"1,243.72",VAIONI GROUP LTD,A02471,8,2017
Allerdale Borough Council,15501,Supplies & Services,Building Control Pay Group,Consultants Fees,08/11/2017,257043,"2,500.00",JAMES ANDREW RECRUITMENT SOLUTIONS LTD,A02339,8,2017
Allerdale Borough Council,14101,Transport,Homelessness,Vehicle Leasing,08/11/2017,257044,171.74,DOBIES VAUXHALL,A00254,8,2017
Allerdale Borough Council,16102,Supplies & Services,Economic Regeneration,Regeneration Initiatives,08/11/2017,257045,"1,500.00",BIZCAT UK LIMITED,A02214,8,2017
Allerdale Borough Council,15601,Supplies & Services,Corporate Postage and Stationary,Postage,08/11/2017,257046,570.26,UK MAIL GROUP PLC,A02371,8,2017
Allerdale Borough Council,12408,Premises,Public Convenience Cleaning,Water & Sewage,08/11/2017,257047,727.38,UNITED UTILITIES ,X00011,8,2017
Allerdale Borough Council,15601,Supplies & Services,Corporate Postage and Stationary,Postage,08/11/2017,257048,40.00,ROYAL MAIL LETTERS,X00021,8,2017
Allerdale Borough Council,15804,Supplies & Services,IT Services,Computer Data Lines B.T.,08/11/2017,257049,"17,289.11",BRITISH TELECOMMUNICATIONS,X00004,8,2017
Allerdale Borough Council,12408,Premises,Public Convenience Cleaning,Water & Sewage,08/11/2017,257050,191.88,UNITED UTILITIES,X00011,8,2017
Allerdale Borough Council,15601,Supplies & Services,Corporate Postage and Stationary,Postage,08/11/2017,257051,"1,005.10",ROYAL MAIL LETTERS,X00021,8,2017
Allerdale Borough Council,12408,Premises,Corporate Property Maintenance,Water & Sewage,08/11/2017,257052,49.34,UNITED UTILITIES,X00011,8,2017
Allerdale Borough Council,12408,Premises,Corporate Property Maintenance,Water & Sewage,08/11/2017,257053,208.76,UNITED UTILITIES ,X00011,8,2017
Allerdale Borough Council,12403,Premises,Corporate Property Maintenance,Gas,08/11/2017,257054,123.78,CORONA ENERGY,X00003,8,2017
Allerdale Borough Council,12403,Premises,Corporate Property Maintenance,Gas,08/11/2017,257055,322.02,CORONA ENERGY,X00003,8,2017
Allerdale Borough Council,12403,Premises,Corporate Property Maintenance,Gas,08/11/2017,257056,179.22,CORONA ENERGY,X00003,8,2017
Allerdale Borough Council,12403,Premises,Corporate Property Maintenance,Gas,08/11/2017,257057,151.27,CORONA ENERGY,X00003,8,2017
Allerdale Borough Council,12403,Premises,Corporate Property Maintenance,Gas,08/11/2017,257058,83.02,CORONA ENERGY,X00003,8,2017
Allerdale Borough Council,12403,Premises,Corporate Property Maintenance,Gas,08/11/2017,257059,34.15,CORONA ENERGY,X00003,8,2017
Allerdale Borough Council,12403,Premises,Corporate Property Maintenance,Gas,08/11/2017,257060,112.02,CORONA ENERGY,X00003,8,2017
Allerdale Borough Council,12402,Premises,Corporate Property Maintenance,Electricity,08/11/2017,257061,"2,679.68",N POWER ,X00015,8,2017
Allerdale Borough Council,12408,Premises,Public Convenience Cleaning,Water & Sewage,08/11/2017,257062,13.67,UNITED UTILITIES,X00011,8,2017
Allerdale Borough Council,15601,Supplies & Services,Corporate Postage and Stationary,Postage,08/11/2017,257063,255.23,ROYAL MAIL LETTERS,X00021,8,2017
Allerdale Borough Council,12408,Premises,Corporate Property Maintenance,Water & Sewage,08/11/2017,257064,34.58,UNITED UTILITIES ,X00011,8,2017
Allerdale Borough Council,12408,Premises,Public Convenience Cleaning,Water & Sewage,08/11/2017,257065,-727.38,UNITED UTILITIES ,X00011,8,2017
Allerdale Borough Council,12408,Premises,Public Convenience Cleaning,Water & Sewage,08/11/2017,257066,724.97,UNITED UTILITIES ,X00011,8,2017
Allerdale Borough Council,12408,Premises,Public Convenience Cleaning,Water & Sewage,08/11/2017,257067,21.28,UNITED UTILITIES ,X00011,8,2017
Allerdale Borough Council,12408,Premises,Public Convenience Cleaning,Water & Sewage,08/11/2017,257068,-191.88,UNITED UTILITIES ,X00011,8,2017
Allerdale Borough Council,12408,Premises,Public Convenience Cleaning,Water & Sewage,08/11/2017,257069,10.74,UNITED UTILITIES ,X00011,8,2017
Allerdale Borough Council,12408,Premises,Corporate Property Maintenance,Water & Sewage,08/11/2017,257070,949.61,UNITED UTILITIES ,X00011,8,2017
Allerdale Borough Council,12408,Premises,Corporate Property Maintenance,Water & Sewage,08/11/2017,257071,66.55,UNITED UTILITIES ,X00011,8,2017
Allerdale Borough Council,12408,Premises,Multi Storey Car Park Utilities & Maint,Water & Sewage,08/11/2017,257072,55.44,UNITED UTILITIES ,X00011,8,2017
Allerdale Borough Council,12408,Premises,Public Convenience Cleaning,Water & Sewage,08/11/2017,257073,"1,130.76",UNITED UTILITIES ,X00011,8,2017
Allerdale Borough Council,12402,Premises,Corporate Property Maintenance,Electricity,08/11/2017,257074,493.45,N POWER ,X00015,8,2017
Allerdale Borough Council,12402,Premises,Corporate Property Maintenance,Electricity,08/11/2017,257075,"1,514.87",N POWER ,X00015,8,2017
Allerdale Borough Council,12402,Premises,Corporate Property Maintenance,Electricity,08/11/2017,257076,24.17,BRITISH GAS ,X00039,8,2017
Allerdale Borough Council,10110,Employee Costs,Housing & Health Pay Group,Salary Sacrifice,08/11/2017,257077,"2,359.15",TUSKERDIRECT LTD,A02186,8,2017
Allerdale Borough Council,12408,Premises,Corporate Property Maintenance,Water & Sewage,08/11/2017,257078,56.34,UNITED UTILITIES ,X00011,8,2017
Allerdale Borough Council,12408,Premises,Corporate Property Maintenance,Water & Sewage,08/11/2017,257079,124.26,UNITED UTILITIES,X00011,8,2017
Allerdale Borough Council,12402,Premises,Public Convenience Cleaning,Electricity,08/11/2017,257080,7.95,N POWER ,X00015,8,2017
Allerdale Borough Council,12402,Premises,Corporate Property Maintenance,Electricity,08/11/2017,257081,3.71,N POWER ,X00015,8,2017
Allerdale Borough Council,12402,Premises,Public Convenience Cleaning,Electricity,08/11/2017,257082,-13.16,N POWER ,X00015,8,2017
Allerdale Borough Council,12402,Premises,Corporate Property Maintenance,Electricity,08/11/2017,257083,-3.80,N POWER ,X00015,8,2017
Allerdale Borough Council,16150,Supplies & Services,Town Centre Management,General Promotions,08/11/2017,257084,880.00,POD (NORTH WEST) LIMITED,A01977,8,2017
Allerdale Borough Council,14150,Transport,Gates Travel,General-Council Vehicles (Non-Capital),22/11/2017,257085,"2,165.50",GATES TRAVEL,A01525,8,2017
Allerdale Borough Council,20305,Third Party Payments,Maryport Wave,Contract Services-Leisure Centres,08/11/2017,257086,"8,661.92",GREENWICH LEISURE LTD (PREV CARLISLE LEISURE),A00136,8,2017
Allerdale Borough Council,20306,Third Party Payments,Maryport Wave,Contract Services-The Wave,08/11/2017,257087,"10,833.33",GREENWICH LEISURE LTD (PREV CARLISLE LEISURE),A00136,8,2017
Allerdale Borough Council,20305,Third Party Payments,Sports & Leisure Centres,Contract Services-Leisure Centres,08/11/2017,257088,"50,531.72",GREENWICH LEISURE LTD (PREV CARLISLE LEISURE),A00136,8,2017
Allerdale Borough Council,15101,Supplies & Services,MSCP equipment,Equipment Costs,08/11/2017,257089,225.00,METRIC GROUP LTD,A00568,8,2017
Allerdale Borough Council,15500,Supplies & Services,Bereavement Services,Budget-Services,08/11/2017,257090,29.79,ENTERPRISE RENT A CAR,A01367,8,2017
Allerdale Borough Council,12408,Premises,Corporate Property Maintenance,Water & Sewage,08/11/2017,257091,13.72,UNITED UTILITIES ,X00011,8,2017
Allerdale Borough Council,15405,Supplies & Services,Electoral Registration,Use of External Printers,15/11/2017,257092,624.47,ADARE SEC LIMITED,A02306,8,2017
Allerdale Borough Council,15506,Supplies & Services,Property Services Pay Group,Professional Services,15/11/2017,257093,"1,562.50",MOSEDALE GILLATT ARCHITECTS,A01020,8,2017
Allerdale Borough Council,14101,Transport,IT Services Pay Group,Vehicle Leasing,22/11/2017,257094,199.00,ARNOLD CLARK FINANCE LIMITED,A01781,8,2017
Allerdale Borough Council,12101,Premises,Corporate Property Maintenance,External Maintenance & Decoration,15/11/2017,257095,"8,570.90",POSTLETHWAITE CONSTRUCTION LTD,C00202,8,2017
Allerdale Borough Council,15401,Supplies & Services,Corporate Postage and Stationary,General Stationery,22/11/2017,257096,48.38,LYRECO,A00043,8,2017
Allerdale Borough Council,15812,Supplies & Services,IT Services,Software Development,22/11/2017,257097,850.00,ASTUN TECHNOLOGY LIMITED,A01234,8,2017
Allerdale Borough Council,33121,Income,Off-street - Owned,Excess Charges - Car Parks Income,15/11/2017,257099,25.00,Redacted information - included personal information ,M01254,8,2017
Allerdale Borough Council,33121,Income,Off-street - Owned,Excess Charges - Car Parks Income,15/11/2017,257100,5.10,Redacted information - included personal information ,M01255,8,2017
Allerdale Borough Council,15502,Supplies & Services,Legal Services,Land Registry Fees,07/11/2017,257101,6.00,HM LAND REGISTRY,A00505,8,2017
Allerdale Borough Council,33113,Income,Building Control - Chargeable,Building Control Fees Income,15/11/2017,257102,22.29,Redacted information - included personal information ,M01256,8,2017
Allerdale Borough Council,20300,Third Party Payments,Parks and Grounds Maintenance,Budget-Contract Services,22/11/2017,257103,32.73,ISS WATERERS LANDSCAPE,C00044,8,2017
Allerdale Borough Council,15102,Supplies & Services,Planning and Development,Equipment Repair & Maintenance,22/11/2017,257104,87.50,YORK SURVEY SUPPLY CENTRE LTD,A01960,8,2017
Allerdale Borough Council,15101,Supplies & Services,Solway Wetlands Project,Equipment Costs,15/11/2017,257105,"3,632.00",CUMBRIA CC ,A00066,8,2017
Allerdale Borough Council,12301,Premises,Corporate Property Maintenance,Security,15/11/2017,257106,60.00,COMPASS SERVICES GROUP,A00839,8,2017
Allerdale Borough Council,12101,Premises,Corporate Property Maintenance,External Maintenance & Decoration,15/11/2017,257107,"1,200.00",DAY CUMMINS LIMITED,A00131,8,2017
Allerdale Borough Council,15101,Supplies & Services,Public Building Cleaning,Equipment Costs,29/11/2017,257108,223.15,KELTIC,A00017,8,2017
Allerdale Borough Council,15101,Supplies & Services,Public Building Cleaning,Equipment Costs,15/11/2017,257109,15.48,WF HYGIENE & CLEANING SUPPLIES,A01794,8,2017
Allerdale Borough Council,14101,Transport,Community Services Pay Group,Vehicle Leasing,15/11/2017,257110,332.08,ENTERPRISE RENT A CAR,A01367,8,2017
Allerdale Borough Council,14101,Transport,Community Services Pay Group,Vehicle Leasing,15/11/2017,257111,367.64,ENTERPRISE RENT A CAR,A01367,8,2017
Allerdale Borough Council,10601,Employee Costs,Solway Coast AONB Core Funding,External Courses & Seminar Fees,30/11/2017,257112,176.00,BARCLAYCARD COMMERCIAL,X00207,8,2017
Allerdale Borough Council,10607,Employee Costs,Solway Coast AONB Core Funding,Subsistence,,257113,248.55,BARCLAYCARD COMMERCIAL,X00207,8,2017
Allerdale Borough Council,54105,Capital Expenditure,Disabled Facilities Grants,Grants  Private Individuals (Capital),15/11/2017,257114,"3,031.50",PARTNERSHIP IN PROPERTY MANAGEMENT LTD,X00120,8,2017
Allerdale Borough Council,54105,Capital Expenditure,Disabled Facilities Grants,Grants  Private Individuals (Capital),15/11/2017,257115,"1,822.54",K BAILIFF & SON LIMITED,X00116,8,2017
Allerdale Borough Council,54105,Capital Expenditure,Disabled Facilities Grants,Grants  Private Individuals (Capital),15/11/2017,257116,"3,031.50",PARTNERSHIP IN PROPERTY MANAGEMENT LTD,X00120,8,2017
Allerdale Borough Council,54105,Capital Expenditure,Disabled Facilities Grants,Grants  Private Individuals (Capital),15/11/2017,257117,"1,695.00",DOLPHIN STAIRLIFTS CUMBRIA,X00107,8,2017
Allerdale Borough Council,54105,Capital Expenditure,Discretionary Grants,Grants  Private Individuals (Capital),15/11/2017,257118,"4,800.00",DOLPHIN STAIRLIFTS CUMBRIA,X00107,8,2017
Allerdale Borough Council,54105,Capital Expenditure,Disabled Facilities Grants,Grants  Private Individuals (Capital),15/11/2017,257119,"11,884.89",L.E.A. BUILDING SERVICES LTD,X00264,8,2017
Allerdale Borough Council,20150,Third Party Payments,Managed Car Parks,General Partnership Service Fees,15/11/2017,257120,867.85,KESWICK CONVENTION TRUST,A02390,8,2017
Allerdale Borough Council,20150,Third Party Payments,Managed Car Parks,General Partnership Service Fees,15/11/2017,257121,"2,208.85",KESWICK CONVENTION TRUST,A02390,8,2017
Allerdale Borough Council,21150,Transfer Payments,Festivals & Events,General Grants,15/11/2017,257122,900.00,RIVERSMEET COMMUNITY COOPERATIVE,A01806,8,2017
Allerdale Borough Council,15103,Supplies & Services,Environmental Initiatives,Purchase of Materials,,257123,142.32,ISS WATERERS LANDSCAPE,C00044,8,2017
Allerdale Borough Council,15101,Supplies & Services,Workington Nature Partnership,Equipment Costs,,257124,161.45,ISS WATERERS LANDSCAPE,C00044,8,2017
Allerdale Borough Council,15103,Supplies & Services,Arts Development,Purchase of Materials,15/11/2017,257125,315.00,HONISTER SLATE MINE,A01700,8,2017
Allerdale Borough Council,12202,Premises,Corporate Property Maintenance,Electrical Repairs and Service,,257126,"1,049.50",LED HUT LTD,A02053,8,2017
Allerdale Borough Council,15400,Supplies & Services,Communications and Marketing,"Budget-Printing,Stationery & Office Supp",15/11/2017,257127,275.00,FIRPRESS PRINTERS,A00063,8,2017
Allerdale Borough Council,15550,Supplies & Services,Estates,General-Service Related Fees,15/11/2017,257128,"1,245.00",CIPFA BUSINESS LIMITED,A01791,8,2017
Allerdale Borough Council,16102,Supplies & Services,Town Centre Management,Regeneration Initiatives,15/11/2017,257129,85.00,KIRKGATE ARTS,A01090,8,2017
Allerdale Borough Council,15401,Supplies & Services,Corporate Postage and Stationary,General Stationery,22/11/2017,257130,50.56,LYRECO,A00043,8,2017
Allerdale Borough Council,15601,Supplies & Services,Corporate Postage and Stationary,Postage,15/11/2017,257131,535.36,UK MAIL GROUP PLC,A02371,8,2017
Allerdale Borough Council,10601,Employee Costs,Training,External Courses & Seminar Fees,15/11/2017,257132,120.00,CARLISLE CITY COUNCIL,A00161,8,2017
Allerdale Borough Council,15501,Supplies & Services,Building Control Pay Group,Consultants Fees,15/11/2017,257133,"1,912.50",BRG INTERIM SOLUTIONS LTD,A02458,8,2017
Allerdale Borough Council,15501,Supplies & Services,Building Control Pay Group,Consultants Fees,15/11/2017,257134,"1,850.00",BRG INTERIM SOLUTIONS LTD,A02458,8,2017
Allerdale Borough Council,15501,Supplies & Services,Building Control Pay Group,Consultants Fees,15/11/2017,257135,"1,871.00",BRG INTERIM SOLUTIONS LTD,A02458,8,2017
Allerdale Borough Council,15603,Supplies & Services,Document Management Pay Group,Franking Machine Costs,22/11/2017,257136,300.00,THE MAILING ROOM (TMR EXECUTIVE AGENCY LTD),A00733,8,2017
Allerdale Borough Council,15501,Supplies & Services,Building Control Pay Group,Consultants Fees,22/11/2017,257137,"2,650.00",EMA PLANNING LTD,A02429,8,2017
Allerdale Borough Council,10401,Employee Costs,Building Control Pay Group,Agency Staff Costs,15/11/2017,257138,"1,897.15",SOUTH MILFORD CONSULTING LTD,A02453,8,2017
Allerdale Borough Council,15505,Supplies & Services,Planning and Development,Licences,22/11/2017,257139,18.02,CENTREMAPS,A00512,8,2017
Allerdale Borough Council,12201,Premises,Corporate Property Maintenance,Internal Maintenance,15/11/2017,257140,101.51,AST SIGNS LIMITED,A01473,8,2017
Allerdale Borough Council,15550,Supplies & Services,Licensing Service,General-Service Related Fees,22/11/2017,257141,24.00,ORBIS PROTECT LTD (PREV SITEXORBIS LIMITED),A00679,8,2017
Allerdale Borough Council,10601,Employee Costs,Training,External Courses & Seminar Fees,22/11/2017,257142,850.00,ASTUN TECHNOLOGY LIMITED,A01234,8,2017
Allerdale Borough Council,15507,Supplies & Services,Land Charges Service,Searches,15/11/2017,257143,"2,682.40",CUMBRIA CC ,A00066,8,2017
Allerdale Borough Council,15507,Supplies & Services,Land Charges Service,Searches,15/11/2017,257144,"2,524.20",CUMBRIA CC,A00066,8,2017
Allerdale Borough Council,15507,Supplies & Services,Land Charges Service,Searches,15/11/2017,257145,"1,265.10",CUMBRIA CC ,A00066,8,2017
Allerdale Borough Council,15507,Supplies & Services,Land Charges Service,Searches,15/11/2017,257146,"1,680.70",CUMBRIA CC ,A00066,8,2017
Allerdale Borough Council,12103,Premises,Corporate Property Maintenance,Grounds Maintenance,,257147,520.00,ISS WATERERS LANDSCAPE,C00044,8,2017
Allerdale Borough Council,15506,Supplies & Services,Housing & Health Pay Group,Professional Services,29/11/2017,257148,"1,480.00",Redacted information - included personal information ,A00206,8,2017
Allerdale Borough Council,10401,Employee Costs,Land Charges Service,Agency Staff Costs,15/11/2017,257149,510.60,ADECCO RECRUITMENT,A00188,8,2017
Allerdale Borough Council,15506,Supplies & Services,Housing & Health Pay Group,Professional Services,29/11/2017,257150,595.00,Redacted information - included personal information ,A00206,8,2017
Allerdale Borough Council,15506,Supplies & Services,Housing & Health Pay Group,Professional Services,29/11/2017,257151,552.50,Redacted information - included personal information ,A00206,8,2017
Allerdale Borough Council,15506,Supplies & Services,Housing & Health Pay Group,Professional Services,29/11/2017,257152,544.00,Redacted information - included personal information ,A00206,8,2017
Allerdale Borough Council,15301,Supplies & Services,Community Services Pay Group,Uniforms,15/11/2017,257153,118.80,THOMAS ARMSTRONG - LINDEN/KAYTOOLS,A00091,8,2017
Allerdale Borough Council,12303,Premises,Corporate Property Maintenance,Window Cleaning,15/11/2017,257154,440.00,BORDERBRITE LTD,C00155,8,2017
Allerdale Borough Council,15507,Supplies & Services,Land Charges Service,Searches,15/11/2017,257155,"2,081.00",CUMBRIA CC,A00066,8,2017
Allerdale Borough Council,20101,Third Party Payments,Public Convenience Cleaning,Cleansing Contract,15/11/2017,257156,325.00,Redacted information - included personal information ,A00165,8,2017
Allerdale Borough Council,12101,Premises,Corporate Property Maintenance,External Maintenance & Decoration,15/11/2017,257157,312.00,PATON BROS SCAFFOLDING LTD,C00009,8,2017
Allerdale Borough Council,33112,Income,Planning and Development,Planning Fees Income,15/11/2017,257158,80.00,K H TWENTYMAN LTD,M01257,8,2017
Allerdale Borough Council,15404,Supplies & Services,Health & Well-being Group,Reference Materials,15/11/2017,257159,400.00,THE BETTER HEALTH AT WORK AWARD,M01258,8,2017
Allerdale Borough Council,15506,Supplies & Services,Financial Planning & Economic Growth,Professional Services,15/11/2017,257160,"15,000.00",ENERGY COAST  WEST CUMBRIA LTD,A01724,8,2017
Allerdale Borough Council,15501,Supplies & Services,Street Cleansing,Consultants Fees,15/11/2017,257161,150.00,Redacted information - included personal information ,A00078,8,2017
Allerdale Borough Council,15500,Supplies & Services,Confidential Waste,Budget-Services,15/11/2017,257162,724.00,Redacted information - included personal information ,A01846,8,2017
Allerdale Borough Council,15506,Supplies & Services,Community Services Pay Group,Professional Services,15/11/2017,257163,"2,000.00",HAYS SPECIALIST RECRUITMENT LTD,A00280,8,2017
Allerdale Borough Council,21150,Transfer Payments,Carnegie Trust Contribution,General Grants,15/11/2017,257164,"10,000.00",CARNEGIE THEATRE TRUST,R00015,8,2017
Allerdale Borough Council,15101,Supplies & Services,Homelessness,Equipment Costs,22/11/2017,257165,93.00,THE LAUNDRY STUDIO,A00225,8,2017
Allerdale Borough Council,14104,Transport,Industrial Units,Repairs & Maintenance,15/11/2017,257166,285.00,Redacted information - included personal information ,C00162,8,2017
Allerdale Borough Council,10401,Employee Costs,Housing & Health Pay Group,Agency Staff Costs,06/12/2017,257167,242.00,HAYS SPECIALIST RECRUITMENT LTD,A00280,8,2017
Allerdale Borough Council,15401,Supplies & Services,Corporate Postage and Stationary,General Stationery,15/11/2017,257168,267.50,ANTALIS LIMITED,A00122,8,2017
Allerdale Borough Council,15506,Supplies & Services,Heat Exchange Network,Professional Services,15/11/2017,257169,"41,310.25",ATKINS LIMITED,A02418,8,2017
Allerdale Borough Council,16350,Supplies & Services,Off-street - Owned,Miscellaneous Expenses,15/11/2017,257170,585.95,3C PAYMENT LIMITED,A02382,8,2017
Allerdale Borough Council,15601,Supplies & Services,Corporate Postage and Stationary,Postage,15/11/2017,257171,436.71,UK MAIL GROUP PLC,A02371,8,2017
Allerdale Borough Council,15501,Supplies & Services,Human Resources Pay Group,Consultants Fees,22/11/2017,257172,"2,749.20",Redacted information - included personal information ,A02373,8,2017
Allerdale Borough Council,15101,Supplies & Services,Recycling,Equipment Costs,15/11/2017,257173,"10,094.18",RPC BPI REFUSE,A00318,8,2017
Allerdale Borough Council,15405,Supplies & Services,Environmental Protection,Use of External Printers,15/11/2017,257174,308.75,FIRPRESS PRINTERS,A00063,8,2017
Allerdale Borough Council,15405,Supplies & Services,Environmental Protection,Use of External Printers,15/11/2017,257175,75.00,FIRPRESS PRINTERS,A00063,8,2017
Allerdale Borough Council,15405,Supplies & Services,Environmental Protection,Use of External Printers,15/11/2017,257176,45.00,FIRPRESS PRINTERS,A00063,8,2017
Allerdale Borough Council,15405,Supplies & Services,Environmental Protection,Use of External Printers,15/11/2017,257177,75.00,FIRPRESS PRINTERS,A00063,8,2017
Allerdale Borough Council,15405,Supplies & Services,Environmental Protection,Use of External Printers,15/11/2017,257178,45.00,FIRPRESS PRINTERS,A00063,8,2017
Allerdale Borough Council,12103,Premises,Coastal Protection and Inland Flooding,Grounds Maintenance,15/11/2017,257179,116.00,ASHCROFT PLANT (CUMBRIA) LTD,C00018,8,2017
Allerdale Borough Council,12103,Premises,Coastal Protection and Inland Flooding,Grounds Maintenance,15/11/2017,257180,116.00,ASHCROFT PLANT (CUMBRIA) LTD,C00018,8,2017
Allerdale Borough Council,15401,Supplies & Services,Corporate Postage and Stationary,General Stationery,22/11/2017,257181,140.33,LYRECO,A00043,8,2017
Allerdale Borough Council,14104,Transport,Pest Control,Repairs & Maintenance,15/11/2017,257182,74.34,MICHELDEVER TYRE SERVICES T/A P&R AUTOCENTRE,A02368,8,2017
Allerdale Borough Council,14202,Transport,Housing & Health Pay Group,Hire Car and petrol,15/11/2017,257183,38.49,ENTERPRISE RENT A CAR,A01367,8,2017
Allerdale Borough Council,16005,Supplies & Services,Off-street - Owned,Card Payment Charges,22/11/2017,257184,698.85,3C PAYMENT LIMITED,A02382,8,2017
Allerdale Borough Council,16102,Supplies & Services,Town Centre Management,Regeneration Initiatives,15/11/2017,257185,54.17,THE SKIDDAW HOTEL,A01605,8,2017
Allerdale Borough Council,12402,Premises,Homelessness,Electricity,15/11/2017,257186,51.22,BRITISH GAS ,X00040,8,2017
Allerdale Borough Council,12405,Premises,Off-street - Owned,Rentals and Lease Charges,15/11/2017,257187,"16,378.54",BNP PARIBAS REAL ESTATE,A02353,8,2017
Allerdale Borough Council,15805,Supplies & Services,IT Services,Computer Network,22/11/2017,257188,200.00,VODAFONE,A00934,8,2017
Allerdale Borough Council,15804,Supplies & Services,IT Services,Computer Data Lines B.T.,22/11/2017,257189,"1,642.21",VODAFONE,A00934,8,2017
Allerdale Borough Council,15601,Supplies & Services,Corporate Postage and Stationary,Postage,15/11/2017,257190,"1,016.12",ROYAL MAIL LETTERS,X00021,8,2017
Allerdale Borough Council,12402,Premises,Car Parks Inspection & Maintenance,Electricity,15/11/2017,257191,91.12,N POWER ,X00015,8,2017
Allerdale Borough Council,12402,Premises,Corporate Property Maintenance,Electricity,15/11/2017,257192,528.76,N POWER ,X00015,8,2017
Allerdale Borough Council,12408,Premises,Corporate Property Maintenance,Water & Sewage,15/11/2017,257193,248.80,UNITED UTILITIES,X00011,8,2017
Allerdale Borough Council,12408,Premises,Corporate Property Maintenance,Water & Sewage,15/11/2017,257194,445.11,UNITED UTILITIES ,X00011,8,2017
Allerdale Borough Council,15404,Supplies & Services,Legal Services,Reference Materials,22/11/2017,257195,337.00,SWEET & MAXWELL (THOMSON REUTERS),A00028,8,2017
Allerdale Borough Council,20300,Third Party Payments,Parks and Grounds Maintenance,Budget-Contract Services,22/11/2017,257196,"54,689.04",ISS WATERERS LANDSCAPE,C00044,8,2017
Allerdale Borough Council,15101,Supplies & Services,Street Cleansing,Equipment Costs,29/11/2017,257197,256.75,ARCO LIMITED,A00045,8,2017
Allerdale Borough Council,15702,Supplies & Services,Off-street - Owned,Line Rentals,15/11/2017,257198,371.00,COBALT TELEPHONE TECHNOLOGY,A01008,8,2017
Allerdale Borough Council,20101,Third Party Payments,Recycling,Cleansing Contract,22/11/2017,257199,-783.52,CUMBRIA WASTE MANAGEMENT LTD,A01304,8,2017
Allerdale Borough Council,20101,Third Party Payments,Recycling,Cleansing Contract,22/11/2017,257200,-356.36,CUMBRIA WASTE MANAGEMENT LTD,A01304,8,2017
Allerdale Borough Council,15702,Supplies & Services,Off-street - Owned,Line Rentals,22/11/2017,257201,471.55,COBALT TELEPHONE TECHNOLOGY,A01008,8,2017
Allerdale Borough Council,12202,Premises,MSCP equipment,Electrical Repairs and Service,15/11/2017,257202,150.00,COMPASS SERVICES GROUP,A00839,8,2017
Allerdale Borough Council,14104,Transport,MSCP equipment,Repairs & Maintenance,15/11/2017,257203,"1,833.70",JJ GROUP (CONTRACTING) LTD,C00038,8,2017
Allerdale Borough Council,15501,Supplies & Services,Estates,Consultants Fees,15/11/2017,257204,"1,470.00",STEVEN SLOCOMBE LTD,A02433,8,2017
Allerdale Borough Council,15804,Supplies & Services,IT Services,Computer Data Lines B.T.,15/11/2017,257205,"2,667.25",CARLISLE CITY COUNCIL,A00161,8,2017
Allerdale Borough Council,16001,Supplies & Services,Banking and Interest,Bank Charges and Fees,15/11/2017,257206,15.44,ALLPAY.NET LIMITED,A00714,8,2017
Allerdale Borough Council,16001,Supplies & Services,Banking and Interest,Bank Charges and Fees,15/11/2017,257207,15.44,ALLPAY.NET LIMITED,A00714,8,2017
Allerdale Borough Council,16001,Supplies & Services,Banking and Interest,Bank Charges and Fees,15/11/2017,257208,15.44,ALLPAY.NET LIMITED,A00714,8,2017
Allerdale Borough Council,15812,Supplies & Services,Shared Revs & Bens IT Costs,Software Development,15/11/2017,257209,"29,284.00",CARLISLE CITY COUNCIL,A00161,8,2017
Allerdale Borough Council,12301,Premises,Corporate Property Maintenance,Security,15/11/2017,257210,984.96,PROTEC SYSTEMS,C00026,8,2017
Allerdale Borough Council,12301,Premises,Corporate Property Maintenance,Security,15/11/2017,257211,60.00,PROTEC SYSTEMS,C00026,8,2017
Allerdale Borough Council,12301,Premises,Corporate Property Maintenance,Security,15/11/2017,257212,991.62,PROTEC SYSTEMS,C00026,8,2017
Allerdale Borough Council,15501,Supplies & Services,Industrial Units,Consultants Fees,15/11/2017,257213,"1,250.00",WALTON GOODLAND LTD,A01226,8,2017
Allerdale Borough Council,15501,Supplies & Services,Industrial Units,Consultants Fees,15/11/2017,257214,"-1,250.00",WALTON GOODLAND LTD,A01226,8,2017
Allerdale Borough Council,16001,Supplies & Services,Banking and Interest,Bank Charges and Fees,15/11/2017,257215,17.95,ALLPAY.NET LIMITED,A00714,8,2017
Allerdale Borough Council,16001,Supplies & Services,Banking and Interest,Bank Charges and Fees,15/11/2017,257216,70.32,ALLPAY.NET LIMITED,A00714,8,2017
Allerdale Borough Council,16001,Supplies & Services,Banking and Interest,Bank Charges and Fees,15/11/2017,257217,"2,775.46",ALLPAY.NET LIMITED,A00714,8,2017
Allerdale Borough Council,16001,Supplies & Services,Banking and Interest,Bank Charges and Fees,15/11/2017,257218,29.39,ALLPAY.NET LIMITED,A00714,8,2017
Allerdale Borough Council,16001,Supplies & Services,Banking and Interest,Bank Charges and Fees,15/11/2017,257219,23.73,ALLPAY.NET LIMITED,A00714,8,2017
Allerdale Borough Council,16001,Supplies & Services,Banking and Interest,Bank Charges and Fees,15/11/2017,257220,35.93,ALLPAY.NET LIMITED,A00714,8,2017
Allerdale Borough Council,16001,Supplies & Services,Banking and Interest,Bank Charges and Fees,15/11/2017,257221,22.03,ALLPAY.NET LIMITED,A00714,8,2017
Allerdale Borough Council,16350,Supplies & Services,Homelessness,Miscellaneous Expenses,15/11/2017,257222,375.00,BR PROPERTIES MANAGEMENT,M00239,8,2017
Allerdale Borough Council,54105,Capital Expenditure,Disabled Facilities Grants,Grants  Private Individuals (Capital),15/11/2017,257223,"2,680.00",PARTNERSHIP IN PROPERTY MANAGEMENT LTD,X00120,8,2017
Allerdale Borough Council,54105,Capital Expenditure,Discretionary Grants,Grants  Private Individuals (Capital),15/11/2017,257224,"4,050.00",DOLPHIN STAIRLIFTS CUMBRIA,X00107,8,2017
Allerdale Borough Council,15501,Supplies & Services,Strategic Acquisition Works,Consultants Fees,15/11/2017,257225,500.00,WALTON GOODLAND LTD,A01226,8,2017
Allerdale Borough Council,54105,Capital Expenditure,Disabled Facilities Grants,Grants  Private Individuals (Capital),15/11/2017,257226,"4,120.00",TOTAL HYGIENE LTD,X00151,8,2017
Allerdale Borough Council,15405,Supplies & Services,Electoral Registration,Use of External Printers,15/11/2017,257227,523.42,ADARE SEC LIMITED,A02306,8,2017
Allerdale Borough Council,16102,Supplies & Services,Town Centre Management,Regeneration Initiatives,22/11/2017,257228,440.00,KESWICK TOURISM ASSOCIATION,A01882,8,2017
Allerdale Borough Council,20150,Third Party Payments,Managed Car Parks,General Partnership Service Fees,22/11/2017,257229,"2,692.15",KESWICK CONVENTION TRUST,A02390,8,2017
Allerdale Borough Council,20150,Third Party Payments,Managed Car Parks,General Partnership Service Fees,22/11/2017,257230,649.40,KESWICK CONVENTION TRUST,A02390,8,2017
Allerdale Borough Council,16301,Supplies & Services,Arts Development,Reimbursement,22/11/2017,257231,40.00,Redacted information - included personal information ,M01259,8,2017
Allerdale Borough Council,10601,Employee Costs,Housing Strategic Function,External Courses & Seminar Fees,,257232,135.00,BARCLAYCARD COMMERCIAL,X00207,8,2017
Allerdale Borough Council,14105,Transport,Solway Coast AONB Core Funding,"Fuel, Lubricants & Consumables",30/11/2017,257233,488.19,BP OIL UK LTD ,X00022,8,2017
Allerdale Borough Council,14105,Transport,Community Services Pay Group,"Fuel, Lubricants & Consumables",30/11/2017,257234,565.84,BP OIL UK LTD ,X00022,8,2017
Allerdale Borough Council,14105,Transport,Community Services Pay Group,"Fuel, Lubricants & Consumables",30/11/2017,257235,574.30,BP OIL UK LTD ,X00022,8,2017
Allerdale Borough Council,14105,Transport,Community Services Pay Group,"Fuel, Lubricants & Consumables",30/11/2017,257236,587.65,BP OIL UK LTD ,X00022,8,2017
Allerdale Borough Council,14105,Transport,Community Services Pay Group,"Fuel, Lubricants & Consumables",30/11/2017,257237,594.44,BP OIL UK LTD ,X00022,8,2017
Allerdale Borough Council,14105,Transport,Community Services Pay Group,"Fuel, Lubricants & Consumables",30/11/2017,257238,545.28,BP OIL UK LTD ,X00022,8,2017
Allerdale Borough Council,14105,Transport,Community Services Pay Group,"Fuel, Lubricants & Consumables",30/11/2017,257239,650.42,BP OIL UK LTD ,X00022,8,2017
Allerdale Borough Council,20150,Third Party Payments,Managed Car Parks,General Partnership Service Fees,22/11/2017,257240,166.40,KESWICK CONVENTION TRUST,A02390,8,2017
Allerdale Borough Council,16150,Supplies & Services,Shop Front Improvements,General Promotions,22/11/2017,257241,"2,700.00",MARYPORT NAVY CLUB,M01260,8,2017
Allerdale Borough Council,21150,Transfer Payments,Shop Front Improvements,General Grants,22/11/2017,257242,900.00,Redacted information - included personal information ,M01261,8,2017
Allerdale Borough Council,21150,Transfer Payments,Arts Development,General Grants,22/11/2017,257243,"1,000.00",DAME KELLY HOLMES TRUST,M01262,8,2017
Allerdale Borough Council,33113,Income,Building Control - Chargeable,Building Control Fees Income,22/11/2017,257244,50.00,Redacted information - included personal information ,M01263,8,2017
Allerdale Borough Council,16350,Supplies & Services,Homelessness,Miscellaneous Expenses,22/11/2017,257245,350.00,Redacted information - included personal information ,M00683,8,2017
Allerdale Borough Council,16350,Supplies & Services,Homelessness,Miscellaneous Expenses,22/11/2017,257246,400.00,Redacted information - included personal information ,M01244,8,2017
Allerdale Borough Council,16350,Supplies & Services,Homelessness,Miscellaneous Expenses,22/11/2017,257247,400.00,Redacted information - included personal information ,M01244,8,2017
Allerdale Borough Council,16350,Supplies & Services,Homelessness,Miscellaneous Expenses,22/11/2017,257248,400.00,Redacted information - included personal information ,M01244,8,2017
Allerdale Borough Council,15502,Supplies & Services,Housing & Health Pay Group,Land Registry Fees,14/11/2017,257249,48.00,HM LAND REGISTRY,A00505,8,2017
Allerdale Borough Council,16150,Supplies & Services,Coastal Community Teams,General Promotions,22/11/2017,257250,731.99,MARYPORT FESTIVALS LTD,A00338,8,2017
Allerdale Borough Council,12101,Premises,Corporate Property Maintenance,External Maintenance & Decoration,,257251,825.00,ISS WATERERS LANDSCAPE,C00044,8,2017
Allerdale Borough Council,15506,Supplies & Services,Housing & Health Pay Group,Professional Services,22/11/2017,257252,932.37,Redacted information - included personal information ,A02376,8,2017
Allerdale Borough Council,15514,Supplies & Services,Mayor's Fund,Public Entertainment,22/11/2017,257253,111.00,PBA20 POPPY APPEAL WORKINGTON RBL,M00593,8,2017
Allerdale Borough Council,10702,Employee Costs,Human Resources Pay Group,Severance Payments,22/11/2017,257254,130.00,BURNETTS SOLICITORS,A00129,8,2017
Allerdale Borough Council,12201,Premises,Corporate Property Maintenance,Internal Maintenance,22/11/2017,257255,610.00,Redacted information - included personal information ,C00008,8,2017
Allerdale Borough Council,16102,Supplies & Services,Town Centre Management,Regeneration Initiatives,22/11/2017,257256,"1,520.00",THE COCKERMOUTH POST,A01713,8,2017
Allerdale Borough Council,15203,Supplies & Services,Festivals & Events,Catering Costs and Consumables,06/12/2017,257257,"1,320.17",NO 10 CATERING LIMITED,A02501,8,2017
Allerdale Borough Council,12101,Premises,Car Parks Inspection & Maintenance,External Maintenance & Decoration,22/11/2017,257258,850.00,Redacted information - included personal information ,C00008,8,2017
Allerdale Borough Council,15203,Supplies & Services,Members Services,Catering Costs and Consumables,22/11/2017,257259,59.40,AL'S KITCHEN LTD,A00187,8,2017
Allerdale Borough Council,14104,Transport,Public Convenience Cleaning,Repairs & Maintenance,22/11/2017,257260,565.71,FCC ENVIRONMENT SERVICES (FOCSA),A00085,8,2017
Allerdale Borough Council,75101,Holding and Control Accounts,Recycling,Income Tax (Control Account),06/12/2017,257261,"5,926.30",A & C WEBER UK LIMITED,A02372,8,2017
Allerdale Borough Council,15604,Supplies & Services,Corporate Postage and Stationary,Franking Machine refills,22/11/2017,257262,"5,000.00",FP TELESET,A00428,8,2017
Allerdale Borough Council,15506,Supplies & Services,Gypsy & Traveller Sites,Professional Services,22/11/2017,257263,"3,150.00",Redacted information - included personal information ,A02490,8,2017
Allerdale Borough Council,15506,Supplies & Services,Environmental Protection,Professional Services,22/11/2017,257264,"1,360.00",VALID CONSULTANCY LTD,A02288,8,2017
Allerdale Borough Council,15506,Supplies & Services,Environmental Protection,Professional Services,06/12/2017,257265,"1,815.55",VALID CONSULTANCY LTD,A02288,8,2017
Allerdale Borough Council,15506,Supplies & Services,Building Control Service Improvement,Professional Services,22/11/2017,257266,"6,325.00",STOR-A-FILE LTD,A02480,8,2017
Allerdale Borough Council,12201,Premises,Homelessness,Internal Maintenance,22/11/2017,257267,620.83,CUMBRIA SUPERGLAZE,A00982,8,2017
Allerdale Borough Council,81614,,MSCP Maint Fund,MSCP Provision,22/11/2017,257268,"42,445.05",ROLAND HILL (PARSONBY) LTD,C00010,8,2017
Allerdale Borough Council,15501,Supplies & Services,Estates,Consultants Fees,22/11/2017,257269,"1,470.00",STEVEN SLOCOMBE LTD,A02433,8,2017
Allerdale Borough Council,14101,Transport,Community Services Pay Group,Vehicle Leasing,22/11/2017,257270,196.93,FCC ENVIRONMENT SERVICES (FOCSA),A00085,8,2017
Allerdale Borough Council,15405,Supplies & Services,Members Services,Use of External Printers,22/11/2017,257271,12.00,FIRPRESS PRINTERS,A00063,8,2017
Allerdale Borough Council,14101,Transport,Community Services Pay Group,Vehicle Leasing,22/11/2017,257272,209.44,ENTERPRISE RENT A CAR,A01367,8,2017
Allerdale Borough Council,15405,Supplies & Services,Arts Development,Use of External Printers,22/11/2017,257273,35.00,FIRPRESS PRINTERS,A00063,8,2017
Allerdale Borough Council,15405,Supplies & Services,Arts Development,Use of External Printers,22/11/2017,257274,28.00,FIRPRESS PRINTERS,A00063,8,2017
Allerdale Borough Council,16300,Supplies & Services,Economic Regeneration,Budget-Miscellaneous,22/11/2017,257275,12.00,FIRPRESS PRINTERS,A00063,8,2017
Allerdale Borough Council,10302,Employee Costs,Transformation Restructure,Past Service Costs,22/11/2017,257276,"23,037.67",YOUR PENSION SERVICE - PRESTON,A01465,8,2017
Allerdale Borough Council,12408,Premises,Corporate Property Maintenance,Water & Sewage,22/11/2017,257277,"1,900.30",UNITED UTILITIES,X00011,8,2017
Allerdale Borough Council,12402,Premises,Footways,Electricity,22/11/2017,257278,"5,362.66",N POWER ,X00015,8,2017
Allerdale Borough Council,12402,Premises,Corporate Property Maintenance,Electricity,22/11/2017,257279,"1,712.96",N POWER,X00015,8,2017
Allerdale Borough Council,12402,Premises,Corporate Property Maintenance,Electricity,22/11/2017,257280,"3,211.88",N POWER,X00015,8,2017
Allerdale Borough Council,15501,Supplies & Services,Off-street - Owned,Consultants Fees,24/11/2017,257281,"-27,088.74",HIGHWAY ROAD SERVICES LTD,C00205,8,2017
Allerdale Borough Council,15501,Supplies & Services,Off-street - Owned,Consultants Fees,24/11/2017,257282,"27,088.74",HIGHWAY ROAD SERVICES LTD,C00205,8,2017
Allerdale Borough Council,10401,Employee Costs,Building Control Pay Group,Agency Staff Costs,22/11/2017,257283,"1,918.75",SOUTH MILFORD CONSULTING LTD,A02453,8,2017
Allerdale Borough Council,15501,Supplies & Services,Building Control Pay Group,Consultants Fees,22/11/2017,257284,"2,650.00",EMA PLANNING LTD,A02429,8,2017
Allerdale Borough Council,73102,Holding and Control Accounts,Capital Project Retentions,Holding Accounts General - Expenditure,22/11/2017,257285,"30,875.00",ROLAND HILL (PARSONBY) LTD,C00010,8,2017
Allerdale Borough Council,73102,Holding and Control Accounts,Capital Project Retentions,Holding Accounts General - Expenditure,22/11/2017,257286,"25,640.55",STOBBARTS LIMITED,C00204,8,2017
Allerdale Borough Council,10502,Employee Costs,Corporate Recruitment,Interview Expenses,22/11/2017,257287,128.94,Redacted information - included personal information ,M01264,8,2017
Allerdale Borough Council,54105,Capital Expenditure,Discretionary Grants,Grants  Private Individuals (Capital),22/11/2017,257288,"3,160.88",LOGIC PLUMBING HEATING & ELECTRICAL,X00265,8,2017
Allerdale Borough Council,20150,Third Party Payments,Managed Car Parks,General Partnership Service Fees,22/11/2017,257289,782.50,KESWICK CONVENTION TRUST,A02390,8,2017
Allerdale Borough Council,16301,Supplies & Services,Sports Development,Reimbursement,22/11/2017,257290,"4,216.20",NETHERHALL SCHOOL,A00279,8,2017
Allerdale Borough Council,20304,Third Party Payments,Recycling,Contract Services-Recycling,22/11/2017,257291,"370,979.41",FCC ENVIRONMENT SERVICES (FOCSA),A00085,8,2017
Allerdale Borough Council,20100,Third Party Payments,Parking Services Pay Group,Budget-Partnership Services,,257292,181.30,PATROL,A00952,8,2017
Allerdale Borough Council,52106,Capital Expenditure,Housing Improvement Projects,Consultants Fees (Capital),22/11/2017,257293,54.50,FIRPRESS PRINTERS,A00063,8,2017
Allerdale Borough Council,20101,Third Party Payments,Recycling,Cleansing Contract,22/11/2017,257294,257.78,CUMBRIA WASTE MANAGEMENT LTD,A01304,8,2017
Allerdale Borough Council,20101,Third Party Payments,Recycling,Cleansing Contract,22/11/2017,257295,"2,773.75",CUMBRIA WASTE MANAGEMENT LTD,A01304,8,2017
Allerdale Borough Council,20101,Third Party Payments,Recycling,Cleansing Contract,22/11/2017,257296,"2,994.93",CUMBRIA WASTE MANAGEMENT LTD,A01304,8,2017
Allerdale Borough Council,20101,Third Party Payments,Recycling,Cleansing Contract,22/11/2017,257297,"3,002.85",CUMBRIA WASTE MANAGEMENT LTD,A01304,8,2017
Allerdale Borough Council,16003,Supplies & Services,Off-street - Owned,Security of Cash Movements,29/11/2017,257298,602.91,G4S CASH SOLUTIONS (UK) LTD,A02421,8,2017
Allerdale Borough Council,20101,Third Party Payments,Recycling,Cleansing Contract,22/11/2017,257299,"1,384.22",CUMBRIA WASTE MANAGEMENT LTD,A01304,8,2017
Allerdale Borough Council,20101,Third Party Payments,Recycling,Cleansing Contract,22/11/2017,257300,"26,566.08",CUMBRIA WASTE MANAGEMENT LTD,A01304,8,2017
Allerdale Borough Council,12203,Premises,Corporate Property Maintenance,Plumbing and Heating Maintenance,22/11/2017,257301,985.00,Redacted information - included personal information ,C00008,8,2017
Allerdale Borough Council,15502,Supplies & Services,Housing & Health Pay Group,Land Registry Fees,21/11/2017,257302,31.00,HM LAND REGISTRY ,A00505,8,2017
Allerdale Borough Council,12408,Premises,Corporate Property Maintenance,Water & Sewage,22/11/2017,257303,9.69,UNITED UTILITIES ,X00011,8,2017
Allerdale Borough Council,12408,Premises,Public Convenience Cleaning,Water & Sewage,22/11/2017,257304,167.91,UNITED UTILITIES ,X00011,8,2017
Allerdale Borough Council,12408,Premises,Corporate Property Maintenance,Water & Sewage,22/11/2017,257305,10.14,UNITED UTILITIES,X00011,8,2017
Allerdale Borough Council,12101,Premises,Corporate Property Maintenance,External Maintenance & Decoration,06/12/2017,257306,"2,436.76",CAPITA - PROPERTY & INFRASTRUCTURE,A00774,8,2017
Allerdale Borough Council,12307,Premises,Corporate Property Maintenance,Fixtures and Fittings,06/12/2017,257307,280.00,SHERIDAN LIFTS LIMITED,C00120,8,2017
Allerdale Borough Council,20101,Third Party Payments,Recycling,Cleansing Contract,22/11/2017,257308,414.04,CUMBRIA WASTE MANAGEMENT LTD,A01304,8,2017
Allerdale Borough Council,15203,Supplies & Services,Community Housing Fund,Catering Costs and Consumables,22/11/2017,257309,262.54,ALLERDALE BOROUGH COUNCIL,X00034,8,2017
Allerdale Borough Council,15501,Supplies & Services,Estates,Consultants Fees,22/11/2017,257310,"3,000.00",JAMES ANDREW RECRUITMENT SOLUTIONS LTD,A02339,8,2017
Allerdale Borough Council,15506,Supplies & Services,Industrial Units,Professional Services,22/11/2017,257311,350.00,HIGH COURT ENFORCEMENT,A00654,8,2017
Allerdale Borough Council,10607,Employee Costs,Mayoral Services,Subsistence,29/11/2017,257312,50.00,MAYORS RELIEF FUND,M01265,8,2017
Allerdale Borough Council,54105,Capital Expenditure,Assistance - Housing Services,Grants  Private Individuals (Capital),29/11/2017,257313,"2,590.00",DOLPHIN STAIRLIFTS CUMBRIA,X00107,8,2017
Allerdale Borough Council,54105,Capital Expenditure,Disabled Facilities Grants,Grants  Private Individuals (Capital),29/11/2017,257314,"13,100.00",DOLPHIN STAIRLIFTS CUMBRIA,X00107,8,2017
Allerdale Borough Council,54105,Capital Expenditure,Disabled Facilities Grants,Grants  Private Individuals (Capital),29/11/2017,257315,"2,195.00",DOLPHIN STAIRLIFTS CUMBRIA,X00107,8,2017
Allerdale Borough Council,54105,Capital Expenditure,Disabled Facilities Grants,Grants  Private Individuals (Capital),29/11/2017,257316,"2,815.00",PARTNERSHIP IN PROPERTY MANAGEMENT LTD,X00120,8,2017
Allerdale Borough Council,54105,Capital Expenditure,Discretionary Grants,Grants  Private Individuals (Capital),29/11/2017,257317,"4,350.00",DOLPHIN STAIRLIFTS CUMBRIA,X00107,8,2017
Allerdale Borough Council,21150,Transfer Payments,Leisure Activities,General Grants,29/11/2017,257318,500.00,WORKINGTON CRICKET CLUB,M01166,8,2017
Allerdale Borough Council,21150,Transfer Payments,Leisure Activities,General Grants,29/11/2017,257319,"1,500.00",TT ELLENBOROUGH RANGERS RLFC - FIELD FUND,M01266,8,2017
Allerdale Borough Council,10502,Employee Costs,Corporate Recruitment,Interview Expenses,29/11/2017,257320,36.00,Redacted information - included personal information ,M01267,8,2017
Allerdale Borough Council,54105,Capital Expenditure,Discretionary Grants,Grants  Private Individuals (Capital),29/11/2017,257321,554.15,HOME GROUP LTD,M01028,8,2017
Allerdale Borough Council,33118,Income,Off-street - Owned,Car Parks - Season Tickets Income,29/11/2017,257322,7.00,Redacted information - included personal information ,M01268,8,2017
Allerdale Borough Council,33118,Income,Off-street - Owned,Car Parks - Season Tickets Income,29/11/2017,257323,5.00,Redacted information - included personal information ,M01269,8,2017
Allerdale Borough Council,15501,Supplies & Services,Planning and Development,Consultants Fees,29/11/2017,257324,"1,350.00",Redacted information - included personal information ,A01574,8,2017
Allerdale Borough Council,15506,Supplies & Services,Mayoral Services,Professional Services,29/11/2017,257325,"4,877.14",CN EVENTS MANAGEMENT,A01099,8,2017
Allerdale Borough Council,12301,Premises,Corporate Property Maintenance,Security,29/11/2017,257326,60.00,PROTEC SYSTEMS,C00026,8,2017
Allerdale Borough Council,15904,Supplies & Services,Members Services,Training,29/11/2017,257327,"2,805.00",STRATEGIC MARINE SERVICE,A00924,8,2017
Allerdale Borough Council,16101,Supplies & Services,Planning and Development,Statutory Notices,29/11/2017,257328,369.04,CUMBRIAN NEWSPAPERS LIMITED,A00869,8,2017
Allerdale Borough Council,16101,Supplies & Services,Planning and Development,Statutory Notices,29/11/2017,257329,303.85,CUMBRIAN NEWSPAPERS LIMITED,A00869,8,2017
Allerdale Borough Council,16302,Supplies & Services,Sports Development,Room Hire,29/11/2017,257330,70.00,ALL SOULS PAROCHIAL CHURC COUNCIL,A02336,8,2017
Allerdale Borough Council,15506,Supplies & Services,Festivals & Events,Professional Services,29/11/2017,257331,300.00,FUZZY MEDIA,A02499,8,2017
Allerdale Borough Council,10501,Employee Costs,Corporate Recruitment,Advertising Vacancies,06/12/2017,257332,"3,959.04",HAYS SPECIALIST RECRUITMENT LTD,A00280,8,2017
Allerdale Borough Council,12309,Premises,Corporate Property Maintenance,Fire and Safety,29/11/2017,257333,4.50,CUMBRIAN SYSTEMS (WESTMORLAND SECURITY),C00062,8,2017
Allerdale Borough Council,12202,Premises,Multi Storey Car Park Utilities & Maint,Electrical Repairs and Service,29/11/2017,257334,"6,064.10",JJ GROUP (CONTRACTING) LTD,C00038,8,2017
Allerdale Borough Council,12402,Premises,Corporate Property Maintenance,Electricity,29/11/2017,257335,90.00,AMEY METERING LIMITED,A01503,8,2017
Allerdale Borough Council,15101,Supplies & Services,Public Convenience Cleaning,Equipment Costs,29/11/2017,257336,157.04,WF HYGIENE & CLEANING SUPPLIES,A01794,8,2017
Allerdale Borough Council,16350,Supplies & Services,Museums,Miscellaneous Expenses,29/11/2017,257337,"1,500.00",ARTLINK TRANSPORT & STORAGE LTD,A02362,8,2017
Allerdale Borough Council,15601,Supplies & Services,Corporate Postage and Stationary,Postage,29/11/2017,257338,"1,086.77",UK MAIL GROUP PLC,A02371,8,2017
Allerdale Borough Council,15508,Supplies & Services,Cumbria Tourism,Subscriptions,29/11/2017,257339,"4,645.00",CUMBRIA TOURISM,A00477,8,2017
Allerdale Borough Council,12302,Premises,Solway Coast AONB Core Funding,Building Cleaning,06/12/2017,257340,105.27,ORIAN SOLUTIONS LTD,A01814,8,2017
Allerdale Borough Council,16350,Supplies & Services,Arts Development,Miscellaneous Expenses,29/11/2017,257341,26.25,TROPHIES SPORT & LEISURE LTD,A01704,8,2017
Allerdale Borough Council,15500,Supplies & Services,Customer Services Pay Group,Budget-Services,29/11/2017,257342,50.00,CITIZENS ADVICE BUREAU,A01181,8,2017
Allerdale Borough Council,15601,Supplies & Services,Elections,Postage,29/11/2017,257343,572.69,ADARE SEC LIMITED,A02306,8,2017
Allerdale Borough Council,15601,Supplies & Services,Elections,Postage,29/11/2017,257344,971.82,ADARE SEC LIMITED,A02306,8,2017
Allerdale Borough Council,10401,Employee Costs,Housing & Health Pay Group,Agency Staff Costs,,257345,242.00,HAYS SPECIALIST RECRUITMENT LTD,A00280,8,2017
Allerdale Borough Council,10401,Employee Costs,Land Charges Service,Agency Staff Costs,29/11/2017,257346,510.60,ADECCO RECRUITMENT,A00188,8,2017
Allerdale Borough Council,20150,Third Party Payments,Corporate Property Maintenance,General Partnership Service Fees,06/12/2017,257347,260.71,ORIAN SOLUTIONS LTD,A01814,8,2017
Allerdale Borough Council,15501,Supplies & Services,Building Control Pay Group,Consultants Fees,29/11/2017,257348,"2,120.00",EMA PLANNING LTD,A02429,8,2017
Allerdale Borough Council,15506,Supplies & Services,Housing & Health Pay Group,Professional Services,29/11/2017,257349,"1,117.50",THE HOUSING ADVICE COMPANY LTD,A02509,8,2017
Allerdale Borough Council,16302,Supplies & Services,Members Services,Room Hire,29/11/2017,257350,180.00,GREENWICH LEISURE LTD (PREV CARLISLE LEISURE),A00136,8,2017
Allerdale Borough Council,15501,Supplies & Services,Estates,Consultants Fees,29/11/2017,257351,"1,470.00",STEVEN SLOCOMBE LTD,A02433,8,2017
Allerdale Borough Council,15101,Supplies & Services,Corporate Property Maintenance,Equipment Costs,22/11/2017,257352,190.29,BOOKER CASH & CARRY,A01419,8,2017
Allerdale Borough Council,20101,Third Party Payments,Recycling,Cleansing Contract,29/11/2017,257369,"2,378.26",CUMBRIA WASTE MANAGEMENT LTD,A01304,8,2017
Allerdale Borough Council,20101,Third Party Payments,Recycling,Cleansing Contract,29/11/2017,257370,"2,640.89",CUMBRIA WASTE MANAGEMENT LTD,A01304,8,2017
Allerdale Borough Council,15601,Supplies & Services,Electoral Registration,Postage,29/11/2017,257371,934.33,ADARE SEC LIMITED,A02306,8,2017
Allerdale Borough Council,15601,Supplies & Services,Electoral Registration,Postage,29/11/2017,257372,165.74,ADARE SEC LIMITED,A02306,8,2017
Allerdale Borough Council,15301,Supplies & Services,Community Services Pay Group,Uniforms,,257373,95.55,KELTIC,A00017,8,2017
Allerdale Borough Council,15401,Supplies & Services,Corporate Postage and Stationary,General Stationery,,257374,293.15,ANTALIS LIMITED,A00122,8,2017
Allerdale Borough Council,15703,Supplies & Services,IT Services,Call Charges,29/11/2017,257375,"1,261.31",BRITISH TELECOMMUNICATIONS,X00004,8,2017
Allerdale Borough Council,15703,Supplies & Services,IT Services,Call Charges,29/11/2017,257376,771.36,BRITISH TELECOMMUNICATIONS,X00004,8,2017
Allerdale Borough Council,73102,Holding and Control Accounts,Returnable Deposits on Commercial Prop,Holding Accounts General - Expenditure,29/11/2017,257377,"1,000.00",Redacted information - included personal information ,M01270,8,2017
Allerdale Borough Council,54105,Capital Expenditure,Disabled Facilities Grants,Grants  Private Individuals (Capital),29/11/2017,257378,"1,575.00",CUMBRIAN SYSTEMS (WESTMORLAND SECURITY),C00062,8,2017
Allerdale Borough Council,54105,Capital Expenditure,Disabled Facilities Grants,Grants  Private Individuals (Capital),29/11/2017,257379,"1,820.00",DOLPHIN STAIRLIFTS CUMBRIA,X00107,8,2017
Allerdale Borough Council,54105,Capital Expenditure,Disabled Facilities Grants,Grants  Private Individuals (Capital),29/11/2017,257380,"1,870.00",DOLPHIN STAIRLIFTS CUMBRIA,X00107,8,2017
Allerdale Borough Council,16350,Supplies & Services,Mayors Charity,Miscellaneous Expenses,29/11/2017,257381,323.50,ROTARY CLUB OF BASSENTHWAITE CHARITY A/C,M01271,8,2017
Allerdale Borough Council,15101,Supplies & Services,Corporate Property Maintenance,Equipment Costs,29/11/2017,257382,18.24,ALLERDALE BOROUGH COUNCIL,X00034,8,2017
Allerdale Borough Council,20150,Third Party Payments,Managed Car Parks,General Partnership Service Fees,29/11/2017,257383,577.95,KESWICK CONVENTION TRUST,A02390,8,2017
Allerdale Borough Council,33113,Income,Building Control - Chargeable,Building Control Fees Income,29/11/2017,257384,230.00,Redacted information - included personal information ,M01272,8,2017
Allerdale Borough Council,21150,Transfer Payments,Leisure Activities,General Grants,29/11/2017,257385,"1,000.00",WORKINGTON RUGBY FOOTBALL CLUB,M01184,8,2017
Allerdale Borough Council,33112,Income,Planning and Development,Planning Fees Income,29/11/2017,257386,265.00,Redacted information - included personal information ,M01273,8,2017
Allerdale Borough Council,12402,Premises,Public Convenience Cleaning,Electricity,29/11/2017,257387,2.75,N POWER,X00015,8,2017
Allerdale Borough Council,12402,Premises,Corporate Property Maintenance,Electricity,29/11/2017,257388,158.03,N POWER,X00015,8,2017
Allerdale Borough Council,12402,Premises,Corporate Property Maintenance,Electricity,29/11/2017,257389,117.27,N POWER,X00015,8,2017
Allerdale Borough Council,12402,Premises,Corporate Property Maintenance,Electricity,29/11/2017,257390,2.75,N POWER,X00015,8,2017
Allerdale Borough Council,12402,Premises,Public Convenience Cleaning,Electricity,29/11/2017,257391,3.45,N POWER,X00015,8,2017
Allerdale Borough Council,12402,Premises,Public Convenience Cleaning,Electricity,29/11/2017,257392,19.04,N POWER,X00015,8,2017
Allerdale Borough Council,12402,Premises,Public Convenience Cleaning,Electricity,29/11/2017,257393,46.08,N POWER,X00015,8,2017
Allerdale Borough Council,12402,Premises,Corporate Property Maintenance,Electricity,29/11/2017,257394,17.86,N POWER,X00015,8,2017
Allerdale Borough Council,12402,Premises,Corporate Property Maintenance,Electricity,29/11/2017,257395,99.32,N POWER,X00015,8,2017
Allerdale Borough Council,12402,Premises,Corporate Property Maintenance,Electricity,29/11/2017,257396,173.51,N POWER,X00015,8,2017
Allerdale Borough Council,12402,Premises,Corporate Property Maintenance,Electricity,29/11/2017,257397,9.24,N POWER,X00015,8,2017
Allerdale Borough Council,12402,Premises,Corporate Property Maintenance,Electricity,29/11/2017,257398,43.01,N POWER,X00015,8,2017
Allerdale Borough Council,12402,Premises,Corporate Property Maintenance,Electricity,29/11/2017,257399,3.45,N POWER,X00015,8,2017
Allerdale Borough Council,12402,Premises,Corporate Property Maintenance,Electricity,29/11/2017,257400,2.13,N POWER,X00015,8,2017
Allerdale Borough Council,12402,Premises,Corporate Property Maintenance,Electricity,29/11/2017,257401,2.75,N POWER,X00015,8,2017
Allerdale Borough Council,12402,Premises,Car Parks Inspection & Maintenance,Electricity,29/11/2017,257402,16.92,N POWER,X00015,8,2017
Allerdale Borough Council,12402,Premises,Corporate Property Maintenance,Electricity,29/11/2017,257403,26.91,N POWER,X00015,8,2017
Allerdale Borough Council,12402,Premises,Public Convenience Cleaning,Electricity,29/11/2017,257404,2.75,N POWER,X00015,8,2017
Allerdale Borough Council,12402,Premises,Public Convenience Cleaning,Electricity,29/11/2017,257405,62.13,N POWER,X00015,8,2017
Allerdale Borough Council,12402,Premises,Multi Storey Car Park Utilities & Maint,Electricity,29/11/2017,257406,3.57,N POWER,X00015,8,2017
Allerdale Borough Council,12402,Premises,Corporate Property Maintenance,Electricity,29/11/2017,257407,580.72,N POWER,X00015,8,2017
Allerdale Borough Council,12402,Premises,Multi Storey Car Park Utilities & Maint,Electricity,29/11/2017,257408,6.47,TOTAL GAS & POWER LIMITED,X00253,8,2017
Allerdale Borough Council,12402,Premises,Multi Storey Car Park Utilities & Maint,Electricity,29/11/2017,257409,6.26,TOTAL GAS & POWER LIMITED,X00253,8,2017
Allerdale Borough Council,12402,Premises,Multi Storey Car Park Utilities & Maint,Electricity,29/11/2017,257410,6.26,TOTAL GAS & POWER LIMITED,X00253,8,2017
Allerdale Borough Council,12408,Premises,Public Convenience Cleaning,Water & Sewage,29/11/2017,257411,195.24,UNITED UTILITIES ,X00011,8,2017
Allerdale Borough Council,12408,Premises,Corporate Property Maintenance,Water & Sewage,29/11/2017,257412,24.12,UNITED UTILITIES ,X00011,8,2017
Allerdale Borough Council,12408,Premises,Public Convenience Cleaning,Water & Sewage,29/11/2017,257413,103.40,UNITED UTILITIES ,X00011,8,2017
Allerdale Borough Council,12402,Premises,Public Convenience Cleaning,Electricity,29/11/2017,257414,15.62,N POWER ,X00015,8,2017
Allerdale Borough Council,14100,Transport,Domestic Waste,Budget-Council Vehicles (Non-capital),,257417,589.60,VOLKSWAGEN GROUP LEASING,A01239,8,2017
Allerdale Borough Council,12309,Premises,Corporate Property Maintenance,Fire and Safety,29/11/2017,257418,120.00,CUMBRIAN SYSTEMS (WESTMORLAND SECURITY),C00062,8,2017
Allerdale Borough Council,12301,Premises,Corporate Property Maintenance,Security,29/11/2017,257419,40.00,CUMBRIAN SYSTEMS (WESTMORLAND SECURITY),C00062,8,2017
Allerdale Borough Council,12301,Premises,Corporate Property Maintenance,Security,29/11/2017,257420,40.00,CUMBRIAN SYSTEMS (WESTMORLAND SECURITY),C00062,8,2017
Allerdale Borough Council,15502,Supplies & Services,Legal Services,Land Registry Fees,24/11/2017,257421,82.00,HM LAND REGISTRY,A00505,8,2017
Allerdale Borough Council,15850,Supplies & Services,Bereavement Services,General Computer Costs,29/11/2017,257422,"1,905.00",GOWER CONSULTANTS LTD,A00821,8,2017
Allerdale Borough Council,15405,Supplies & Services,Domestic Waste,Use of External Printers,29/11/2017,257423,120.00,FIRPRESS PRINTERS,A00063,8,2017
Allerdale Borough Council,15405,Supplies & Services,Domestic Waste,Use of External Printers,29/11/2017,257424,193.00,FIRPRESS PRINTERS,A00063,8,2017
Allerdale Borough Council,15405,Supplies & Services,Domestic Waste,Use of External Printers,29/11/2017,257425,132.00,FIRPRESS PRINTERS,A00063,8,2017
Allerdale Borough Council,14101,Transport,Recycling,Vehicle Leasing,29/11/2017,257426,500.00,DOBIES VAUXHALL,A00254,8,2017
Allerdale Borough Council,15101,Supplies & Services,Recycling,Equipment Costs,29/11/2017,257427,"1,140.00",SAI-PAC (UK) LIMITED,A02401,8,2017
Allerdale Borough Council,14101,Transport,Recycling,Vehicle Leasing,29/11/2017,257428,500.00,DOBIES VAUXHALL,A00254,8,2017
Allerdale Borough Council,14101,Transport,Recycling,Vehicle Leasing,29/11/2017,257429,500.00,DOBIES VAUXHALL,A00254,8,2017
Allerdale Borough Council,15103,Supplies & Services,Benefits,Purchase of Materials,,257430,55.00,BARCLAYCARD COMMERCIAL ,X00207,8,2017
Allerdale Borough Council,16101,Supplies & Services,Legal Services,Statutory Notices,06/12/2017,257431,430.54,CUMBRIAN NEWSPAPERS LIMITED,A00869,8,2017
Allerdale Borough Council,75103,Holding and Control Accounts,Payroll Suspense Account,PAYROLL November 17 Travel & Subsistence  ,,,"14,522.40",INLAND REVENUE,X00038,6,2017
